Workbook

Sheet Introduction
A5: remarks? tony.opsomer@gmail.com | E5: version 2023-07-15
B7: C152 | C7: Flight log form
C8: Performance form
C9: Weight and balance form
A12: Vliegclub Grimbergen BE.DTO.113
A13: download the latest version from https://goahead.classy.be/weight-balance/

Sheet Flight log FORM
B2: VFR FLIGHT LOG | VCG BE.DTO.113 | E2: 1 | F2: FLIGHT TYPE | G2: VCG PILOT N°: | I2: TEMP | K2: FUEL TANK | L2: =IF(NOT(E2=1),AJ40,"") ->  | M2: =IF(L2="","",L2/3.785412) ->  | O2: To be completed by a VCG flight instructor (FI) in case of student flight | U2: Notes | AD2: Calculations
E3: 1 | F3: 1 | G3: DATE: | H3: =TODAY() -> 2023-07-15 | I3: TAS | J3: 95 | K3: Consumption | L3: =MAX('C152 Performance specs'!F33:F65,'C152 Performance specs'!I33:I65,'C152 Performance specs'!L33:L65)*3.785412 -> 23.4695544 | M3: =L3/3.785412 -> 6.2 | O3: Date of Flight
B4: =Introduction!A5&" | "&Introduction!E5 -> remarks? tony.opsomer@gmail.com | version 2023-07-15 | E4: =IF(AND(E3=2,LEFT(B6,2)<>LEFT(B7,2),B7<>""),"DON'T FORGET TO FILE A FLIGHTPLAN AND REGISTER THE FLIGHT BEFORE TAKEOFF!",IF(AND(OR(E3=3,E3=2),LEFT(B6,2)=LEFT(B7,2)),"DON'T FORGET TO REGISTER THE FLIGHT BEFORE TAKEOFF!","")) ->  | I4: Pilot Name | O4: Name and signature of student pilot
B5: Airfield | C5: Gnd freq | D5: Twr / Rad freq | E5: ATIS freq | F5: Elev | G5: QNH | I5: W | J5: V | K5: RWY | L5: Preferred RWY | M5: RWY length | O5: Name of FI
D6: =IF(B6="EBGB",119.505,"") ->  | F6: =IF(B6="EBGB",70,"") ->  | K6: =IF(B6="EBGB","01-19","") ->  | L6: =IF(ISERROR(AG29),"",AG29) ->  | M6: =IF(B6="EBGB",615,"") ->  | O6: FI number
C7: =IF(E3=3,C6,"") ->  | D7: =IF(E3=3,D6,"") ->  | E7: =IF(E3=3,E6,"") ->  | F7: =IF(E3=3,F6,IF(B7="EBGB",70,"")) ->  | G7: =IF(E3=3,G6,IF(G6="","",G6)) ->  | I7: =IF(B7=B6,I6,IF(OR(AF33=0,ISERROR(AF33)),"",AF33)) -> 0 | J7: =IF(OR(AH33=0,ISERROR(AH33)),"",IF(B7=B6,J6,AH33)) -> 0 | K7: =IF(B7="EBGB","01-19","") ->  | L7: =IF(ISERROR(AG34),"",IF(B7=B6,L6,AG34)) ->  | M7: =IF(E3=3,M6,IF(B7="EBGB",615,"")) ->  | AD7: dropdown list
B9: ALTERNATES | E9: Elev | K9: Elev | O9: FI signature | R9: A student pilot is NOT allowed to continue his/her flight when anomalies occurred or after landing at another aerodrome than originally intended (EASA FCL.020 FCL.045)
C10: RWY | E10: Radio freq | I10: RWY | K10: Radio freq | O10: Vliegclub Grimbergen
C11: LDA | I11: LDA | O11: BE.DTO.113
B13: SQWK-codes | C13: Standard VFR | E13: 2000 if ATS 7000 if no ATS | F13: Hijack | G13: 7500 | I13: Radio failure | K13: 7600 | L13: Distress | M13: 7700 | O13: Light gun signals | U13: Interception signals | AD13: 1 | AE13: SELECT | AH13: 1 | AI13: SELECT
AD14: 2 | AE14: OO-VCL | AH14: 2 | AI14: NAV
B15: NEW SQWK | C15: 0041-0057 (VFR - Bru info) | E15: NEW QNH | J15: TAKE-OFF TIME | L15: : | AD15: 3 | AE15: OO-BET | AH15: 3 | AI15: LOC
AD16: 4 | AE16: OO-VCR
B17: From / To | C17: VOR | E17: W / V | F17: Rv/ Var | G17: Cm | H17: Cc | I17: DIST / Cruise ALT | J17: GS | K17: EET / TOT EET | L17: Enroute radio / Frequency | AD17: 5 | AE17: OO-VCM
C18: Name | D18: Bearing | AH18: 1 | AI18: SELECT
C19: Freq | D19: TO/FROM | AH19: 2 | AI19: DAY
A20: =IF(B21=$B$7,$B$7,"") -> 0 | B20: =IF(B6="","",B6) ->  | E20: =IF(I6="","",I6) ->  | G20: =IF(OR(F20<0,F20>359,F20="",F21=""),"",IF((ROUND(((180/PI())*(((PI()/180)*F20)+SIN((E21/$J$3)*(SIN(((PI()/180)*E20)-((PI()/180)*F20)))))-F21),0))>=360,ROUND(((180/PI())*(((PI()/180)*F20)+SIN((E21/$J$3)*(SIN(((PI()/180)*E20)-((PI()/180)*F20))))))-F21,0)-360,IF((ROUND(((180/PI())*(((PI()/180)*F20)+SIN((E21/$J$3)*(SIN(((PI()/180)*E20)-((PI()/180)*F20)))))-F21),0))<0,ROUND(((180/PI())*(((PI()/180)*F20)+SIN((E21/$J$3)*(SIN(((PI()/180)*E20)-((PI()/180)*F20)))))-F21),0)+360,ROUND(((180/PI())*(((PI()/180)*F20)+SIN((E21/$J$3)*(SIN(((PI()/180)*E20)-((PI()/180)*F20)))))-F21),0)))) ->  | H20: =IF(OR(F20<0,F20>359,F20="",F21=""),"",IF((ROUND(((180/PI())*(((PI()/180)*F20)+SIN((E21/$J$3)*(SIN(((PI()/180)*E20)-((PI()/180)*F20)))))-F21-AL57),0))>=360,ROUND(((180/PI())*(((PI()/180)*F20)+SIN((E21/$J$3)*(SIN(((PI()/180)*E20)-((PI()/180)*F20))))))-F21-AL57,0)-360,IF((ROUND(((180/PI())*(((PI()/180)*F20)+SIN((E21/$J$3)*(SIN(((PI()/180)*E20)-((PI()/180)*F20)))))-F21-AL57),0))<0,ROUND(((180/PI())*(((PI()/180)*F20)+SIN((E21/$J$3)*(SIN(((PI()/180)*E20)-((PI()/180)*F20)))))-F21-AL57),0)+360,ROUND(((180/PI())*(((PI()/180)*F20)+SIN((E21/$J$3)*(SIN(((PI()/180)*E20)-((PI()/180)*F20)))))-F21-AL57),0)))) ->  | J20: =IF(OR(F20<0,F20>359,F20=""),"",ROUND($J$3*SQRT((1-((($E21/$J$3)*(SIN(((PI()/180)*$E20)-((PI()/180)*F20))))^2)))-($E21*COS(((PI()/180)*$E20)-((PI()/180)*F20))),0)) ->  | K20: =IF(OR(I20=0,I20="",F20=""),"",ROUND(((I20/J20)*60),1)) ->  | AH20: 3 | AI20: NIGHT
A21: =IF(B22=$B$7,$B$7,"") -> 0 | E21: =IF(J6="","",J6) ->  | K21: =IF(K20="","","TOT: "&K20) -> 
A22: 0 | B22: =IF(OR(B21="",B21=B7),"",B21) ->  | E22: =IF(OR(B21="",B21=B7),"",I$6) ->  | G22: =IF(OR(F22<0,F22>359,F22="",F23=""),"",IF((ROUND(((180/PI())*(((PI()/180)*F22)+SIN((E23/$J$3)*(SIN(((PI()/180)*E22)-((PI()/180)*F22)))))-F23),0))>=360,ROUND(((180/PI())*(((PI()/180)*F22)+SIN((E23/$J$3)*(SIN(((PI()/180)*E22)-((PI()/180)*F22))))))-F23,0)-360,IF((ROUND(((180/PI())*(((PI()/180)*F22)+SIN((E23/$J$3)*(SIN(((PI()/180)*E22)-((PI()/180)*F22)))))-F23),0))<0,ROUND(((180/PI())*(((PI()/180)*F22)+SIN((E23/$J$3)*(SIN(((PI()/180)*E22)-((PI()/180)*F22))))))-F23,0)+360,ROUND(((180/PI())*(((PI()/180)*F22)+SIN((E23/$J$3)*(SIN(((PI()/180)*E22)-((PI()/180)*F22)))))-F23),0)))) ->  | H22: =IF(OR(F22<0,F22>359,F22="",F23=""),"",IF((ROUND(((180/PI())*(((PI()/180)*F22)+SIN((E23/$J$3)*(SIN(((PI()/180)*E22)-((PI()/180)*F22)))))-F23-AL58),0))>=360,ROUND(((180/PI())*(((PI()/180)*F22)+SIN((E23/$J$3)*(SIN(((PI()/180)*E22)-((PI()/180)*F22))))))-F23-AL58,0)-360,IF((ROUND(((180/PI())*(((PI()/180)*F22)+SIN((E23/$J$3)*(SIN(((PI()/180)*E22)-((PI()/180)*F22)))))-F23-AL58),0))<0,ROUND(((180/PI())*(((PI()/180)*F22)+SIN((E23/$J$3)*(SIN(((PI()/180)*E22)-((PI()/180)*F22))))))-F23-AL58,0)+360,ROUND(((180/PI())*(((PI()/180)*F22)+SIN((E23/$J$3)*(SIN(((PI()/180)*E22)-((PI()/180)*F22)))))-F23-AL58),0)))) ->  | I22: =IF(OR(B21="",B21=B3),"",0) ->  | J22: =IF(OR(F22<0,F22>359,F22=""),"",ROUND($J$3*SQRT((1-((($E23/$J$3)*(SIN(((PI()/180)*$E22)-((PI()/180)*F22))))^2)))-($E23*COS(((PI()/180)*$E22)-((PI()/180)*F22))),0)) ->  | K22: =IF(OR(I22=0,I22="",F22=""),"",ROUND(((I22/J22)*60),1)) -> 
A23: 0 | E23: =IF(OR(B21="",B21=B7),"",J$6) ->  | F23: =IF(OR(B21="",B21=B7,F21=""),"",F21) ->  | I23: =IF(OR(B21="",B21=B7),"",IF(OR(B21="",I21=""),"",I21)) ->  | K23: =IF(K22="","","TOT: "&K20+K22) ->  | AD23: Preferred QFU
A24: 0 | B24: =IF(OR(B23="",B23=B7),"",B23) ->  | E24: =IF(OR(B23="",B23=B7),"",I$6) ->  | G24: =IF(OR(F24<0,F24>359,F24="",F25=""),"",IF((ROUND(((180/PI())*(((PI()/180)*F24)+SIN((E25/$J$3)*(SIN(((PI()/180)*E24)-((PI()/180)*F24)))))-F25),0))>=360,ROUND(((180/PI())*(((PI()/180)*F24)+SIN((E25/$J$3)*(SIN(((PI()/180)*E24)-((PI()/180)*F24))))))-F25,0)-360,IF((ROUND(((180/PI())*(((PI()/180)*F24)+SIN((E25/$J$3)*(SIN(((PI()/180)*E24)-((PI()/180)*F24)))))-F25),0))<0,ROUND(((180/PI())*(((PI()/180)*F24)+SIN((E25/$J$3)*(SIN(((PI()/180)*E24)-((PI()/180)*F24))))))-F25,0)+360,ROUND(((180/PI())*(((PI()/180)*F24)+SIN((E25/$J$3)*(SIN(((PI()/180)*E24)-((PI()/180)*F24)))))-F25),0)))) ->  | H24: =IF(OR(F24<0,F24>359,F24="",F25=""),"",IF((ROUND(((180/PI())*(((PI()/180)*F24)+SIN((E25/$J$3)*(SIN(((PI()/180)*E24)-((PI()/180)*F24)))))-F25-AL59),0))>=360,ROUND(((180/PI())*(((PI()/180)*F24)+SIN((E25/$J$3)*(SIN(((PI()/180)*E24)-((PI()/180)*F24))))))-F25-AL59,0)-360,IF((ROUND(((180/PI())*(((PI()/180)*F24)+SIN((E25/$J$3)*(SIN(((PI()/180)*E24)-((PI()/180)*F24)))))-F25-AL59),0))<0,ROUND(((180/PI())*(((PI()/180)*F24)+SIN((E25/$J$3)*(SIN(((PI()/180)*E24)-((PI()/180)*F24))))))-F25-AL59,0)+360,ROUND(((180/PI())*(((PI()/180)*F24)+SIN((E25/$J$3)*(SIN(((PI()/180)*E24)-((PI()/180)*F24)))))-F25-AL59),0)))) ->  | I24: =IF(OR(B23="",B23=B5),"",0) ->  | J24: =IF(OR(F24<0,F24>359,F24=""),"",ROUND($J$3*SQRT((1-((($E25/$J$3)*(SIN(((PI()/180)*$E24)-((PI()/180)*F24))))^2)))-($E25*COS(((PI()/180)*$E24)-((PI()/180)*F24))),0)) ->  | K24: =IF(OR(I24=0,I24="",F24=""),"",ROUND(((I24/J24)*60),1)) ->  | AD24: journey
A25: 0 | E25: =IF(OR(B23="",B23=B7),"",J$6) ->  | F25: =IF(OR(B23="",B23=B7,F23=""),"",F23) ->  | I25: =IF(OR(B23="",B23=B7),"",IF(OR(B23="",I23=""),"",I23)) ->  | K25: =IF(K24="","","TOT: "&K20+K22+K24) ->  | AD25: =B6 -> 0 | AE25: =VALUE(LEFT(K6,2)) ->  | AG25: =VALUE(RIGHT(K6,2)) ->  | AI25: CHECK
A26: 0 | B26: =IF(OR(B25="",B25=B7),"",B25) ->  | E26: =IF(OR(B25="",B25=B7),"",I$6) ->  | G26: =IF(OR(F26<0,F26>359,F26="",F27=""),"",IF((ROUND(((180/PI())*(((PI()/180)*F26)+SIN((E27/$J$3)*(SIN(((PI()/180)*E26)-((PI()/180)*F26)))))-F27),0))>=360,ROUND(((180/PI())*(((PI()/180)*F26)+SIN((E27/$J$3)*(SIN(((PI()/180)*E26)-((PI()/180)*F26))))))-F27,0)-360,IF((ROUND(((180/PI())*(((PI()/180)*F26)+SIN((E27/$J$3)*(SIN(((PI()/180)*E26)-((PI()/180)*F26)))))-F27),0))<0,ROUND(((180/PI())*(((PI()/180)*F26)+SIN((E27/$J$3)*(SIN(((PI()/180)*E26)-((PI()/180)*F26))))))-F27,0)+360,ROUND(((180/PI())*(((PI()/180)*F26)+SIN((E27/$J$3)*(SIN(((PI()/180)*E26)-((PI()/180)*F26)))))-F27),0)))) ->  | H26: =IF(OR(F26<0,F26>359,F26="",F27=""),"",IF((ROUND(((180/PI())*(((PI()/180)*F26)+SIN((E27/$J$3)*(SIN(((PI()/180)*E26)-((PI()/180)*F26)))))-F27-AL60),0))>=360,ROUND(((180/PI())*(((PI()/180)*F26)+SIN((E27/$J$3)*(SIN(((PI()/180)*E26)-((PI()/180)*F26))))))-F27-AL60,0)-360,IF((ROUND(((180/PI())*(((PI()/180)*F26)+SIN((E27/$J$3)*(SIN(((PI()/180)*E26)-((PI()/180)*F26)))))-F27-AL60),0))<0,ROUND(((180/PI())*(((PI()/180)*F26)+SIN((E27/$J$3)*(SIN(((PI()/180)*E26)-((PI()/180)*F26))))))-F27-AL60,0)+360,ROUND(((180/PI())*(((PI()/180)*F26)+SIN((E27/$J$3)*(SIN(((PI()/180)*E26)-((PI()/180)*F26)))))-F27-AL60),0)))) ->  | I26: =IF(OR(B25="",B25=B7),"",0) ->  | J26: =IF(OR(F26<0,F26>359,F26=""),"",ROUND($J$3*SQRT((1-((($E27/$J$3)*(SIN(((PI()/180)*$E26)-((PI()/180)*F26))))^2)))-($E27*COS(((PI()/180)*$E26)-((PI()/180)*F26))),0)) ->  | K26: =IF(OR(I26=0,I26="",F26=""),"",ROUND(((I26/J26)*60),1)) ->  | AE26: =AH28*COS((ABS((AE25*10)-AF28)*PI()/180)) ->  | AF26: =IF(AE26<0,"TW",IF(AE26>=0,"HW",)) ->  | AG26: =AH28*COS((ABS((AG25*10)-AF28)*PI()/180)) ->  | AH26: =IF(AG26<0,"TW",IF(AG26>=0,"HW",)) ->  | AI26: =IF(AE26<0,IF(AG26<0,"DANGER",IF(AE26<AG26,AG25,AE25)),AE25) -> 
A27: 0 | E27: =IF(OR(B25="",B25=B7),"",J$6) ->  | F27: =IF(OR(B25="",B25=B7,F25=""),"",F25) ->  | I27: =IF(OR(B25="",B25=B7),"",IF(OR(B25="",I25=""),"",I25)) ->  | K27: =IF(K26="","","TOT: "&K20+K22+K24+K26) ->  | AE27: =AH28*SIN((ABS((AE25*10)-AF28)*PI()/180)) ->  | AF27: CW | AG27: =AH28*SIN((ABS((AG25*10)-AF28)*PI()/180)) ->  | AH27: CW | AI27: =IF(ABS(AE27)<15,IF(ABS(AG27)<15,"OK","DANGER")) -> 
A28: 0 | B28: =IF(OR(B27="",B27=B7),"",B27) ->  | E28: =IF(OR(B27="",B27=B7),"",I$6) ->  | G28: =IF(OR(F28<0,F28>359,F28="",F29=""),"",IF((ROUND(((180/PI())*(((PI()/180)*F28)+SIN((E29/$J$3)*(SIN(((PI()/180)*E28)-((PI()/180)*F28)))))-F29),0))>=360,ROUND(((180/PI())*(((PI()/180)*F28)+SIN((E29/$J$3)*(SIN(((PI()/180)*E28)-((PI()/180)*F28))))))-F29,0)-360,IF((ROUND(((180/PI())*(((PI()/180)*F28)+SIN((E29/$J$3)*(SIN(((PI()/180)*E28)-((PI()/180)*F28)))))-F29),0))<0,ROUND(((180/PI())*(((PI()/180)*F28)+SIN((E29/$J$3)*(SIN(((PI()/180)*E28)-((PI()/180)*F28))))))-F29,0)+360,ROUND(((180/PI())*(((PI()/180)*F28)+SIN((E29/$J$3)*(SIN(((PI()/180)*E28)-((PI()/180)*F28)))))-F29),0)))) ->  | H28: =IF(OR(F28<0,F28>359,F28="",F29=""),"",IF((ROUND(((180/PI())*(((PI()/180)*F28)+SIN((E29/$J$3)*(SIN(((PI()/180)*E28)-((PI()/180)*F28)))))-F29-AL61),0))>=360,ROUND(((180/PI())*(((PI()/180)*F28)+SIN((E29/$J$3)*(SIN(((PI()/180)*E28)-((PI()/180)*F28))))))-F29-AL61,0)-360,IF((ROUND(((180/PI())*(((PI()/180)*F28)+SIN((E29/$J$3)*(SIN(((PI()/180)*E28)-((PI()/180)*F28)))))-F29-AL61),0))<0,ROUND(((180/PI())*(((PI()/180)*F28)+SIN((E29/$J$3)*(SIN(((PI()/180)*E28)-((PI()/180)*F28))))))-F29-AL61,0)+360,ROUND(((180/PI())*(((PI()/180)*F28)+SIN((E29/$J$3)*(SIN(((PI()/180)*E28)-((PI()/180)*F28)))))-F29-AL61),0)))) ->  | I28: =IF(OR(B27="",B27=B7),"",0) ->  | J28: =IF(OR(F28<0,F28>359,F28=""),"",ROUND($J$3*SQRT((1-((($E29/$J$3)*(SIN(((PI()/180)*$E28)-((PI()/180)*F28))))^2)))-($E29*COS(((PI()/180)*$E28)-((PI()/180)*F28))),0)) ->  | K28: =IF(OR(I28=0,I28="",F28=""),"",ROUND(((I28/J28)*60),1)) ->  | AE28: W | AF28: =I6 -> 0 | AG28: V | AH28: =J6 -> 0
A29: 0 | E29: =IF(OR(B27="",B27=B7),"",J$6) ->  | F29: =IF(OR(B27="",B27=B7,F27=""),"",F27) ->  | I29: =IF(OR(B27="",B27=B7),"",IF(OR(B27="",I27=""),"",I27)) ->  | K29: =IF(K28="","","TOT: "&K20+K22+K24+K26+K28) ->  | O29: Marshaller hand signals | AE29: PREFERRED QFU | AG29: =IF(AI27="OK",AI26,"DANGER") -> 
A30: 0 | B30: =IF(OR(B29="",B29=B7),"",B29) ->  | E30: =IF(OR(B29="",B29=B7),"",I$6) ->  | G30: =IF(OR(F30<0,F30>359,F30="",F31=""),"",IF((ROUND(((180/PI())*(((PI()/180)*F30)+SIN((E31/$J$3)*(SIN(((PI()/180)*E30)-((PI()/180)*F30)))))-F31),0))>=360,ROUND(((180/PI())*(((PI()/180)*F30)+SIN((E31/$J$3)*(SIN(((PI()/180)*E30)-((PI()/180)*F30))))))-F31,0)-360,IF((ROUND(((180/PI())*(((PI()/180)*F30)+SIN((E31/$J$3)*(SIN(((PI()/180)*E30)-((PI()/180)*F30)))))-F31),0))<0,ROUND(((180/PI())*(((PI()/180)*F30)+SIN((E31/$J$3)*(SIN(((PI()/180)*E30)-((PI()/180)*F30))))))-F31,0)+360,ROUND(((180/PI())*(((PI()/180)*F30)+SIN((E31/$J$3)*(SIN(((PI()/180)*E30)-((PI()/180)*F30)))))-F31),0)))) ->  | H30: =IF(OR(F30<0,F30>359,F30="",F31=""),"",IF((ROUND(((180/PI())*(((PI()/180)*F30)+SIN((E31/$J$3)*(SIN(((PI()/180)*E30)-((PI()/180)*F30)))))-F31-AL62),0))>=360,ROUND(((180/PI())*(((PI()/180)*F30)+SIN((E31/$J$3)*(SIN(((PI()/180)*E30)-((PI()/180)*F30))))))-F31-AL62,0)-360,IF((ROUND(((180/PI())*(((PI()/180)*F30)+SIN((E31/$J$3)*(SIN(((PI()/180)*E30)-((PI()/180)*F30)))))-F31-AL62),0))<0,ROUND(((180/PI())*(((PI()/180)*F30)+SIN((E31/$J$3)*(SIN(((PI()/180)*E30)-((PI()/180)*F30))))))-F31-AL62,0)+360,ROUND(((180/PI())*(((PI()/180)*F30)+SIN((E31/$J$3)*(SIN(((PI()/180)*E30)-((PI()/180)*F30)))))-F31-AL62),0)))) ->  | I30: =IF(OR(B29="",B29=B7),"",0) ->  | J30: =IF(OR(F30<0,F30>359,F30=""),"",ROUND($J$3*SQRT((1-((($E31/$J$3)*(SIN(((PI()/180)*$E30)-((PI()/180)*F30))))^2)))-($E31*COS(((PI()/180)*$E30)-((PI()/180)*F30))),0)) ->  | K30: =IF(OR(I30=0,I30="",F30=""),"",ROUND(((I30/J30)*60),1)) ->  | AD30: =B7 -> 0 | AE30: =VALUE(LEFT(K7,2)) ->  | AG30: =VALUE(RIGHT(K7,2)) -> 
A31: 0 | E31: =IF(OR(B29="",B29=B7),"",J$6) ->  | F31: =IF(OR(B29="",B29=B7,F29=""),"",F29) ->  | I31: =IF(OR(B29="",B29=B7),"",IF(OR(B29="",I29=""),"",I29)) ->  | K31: =IF(K30="","","TOT: "&K20+K22+K24+K26+K28+K30) ->  | AE31: =AH33*COS((ABS((AE30*10)-AF33)*PI()/180)) ->  | AF31: =IF(AE31<0,"TW",IF(AE31>=0,"HW",)) ->  | AG31: =AH33*COS((ABS((AG30*10)-AF33)*PI()/180)) ->  | AH31: =IF(AG31<0,"TW",IF(AG31>=0,"HW",)) ->  | AI31: =IF(AE31<0,IF(AG31<0,"DANGER",IF(AE31<AG31,AG30,AE30)),AE30) -> 
A32: 0 | B32: =IF(OR(B31="",B31=B7),"",B31) ->  | E32: =IF(OR(B31="",B31=B7),"",I$6) ->  | G32: =IF(OR(F32<0,F32>359,F32="",F33=""),"",IF((ROUND(((180/PI())*(((PI()/180)*F32)+SIN((E33/$J$3)*(SIN(((PI()/180)*E32)-((PI()/180)*F32)))))-F33),0))>=360,ROUND(((180/PI())*(((PI()/180)*F32)+SIN((E33/$J$3)*(SIN(((PI()/180)*E32)-((PI()/180)*F32))))))-F33,0)-360,IF((ROUND(((180/PI())*(((PI()/180)*F32)+SIN((E33/$J$3)*(SIN(((PI()/180)*E32)-((PI()/180)*F32)))))-F33),0))<0,ROUND(((180/PI())*(((PI()/180)*F32)+SIN((E33/$J$3)*(SIN(((PI()/180)*E32)-((PI()/180)*F32))))))-F33,0)+360,ROUND(((180/PI())*(((PI()/180)*F32)+SIN((E33/$J$3)*(SIN(((PI()/180)*E32)-((PI()/180)*F32)))))-F33),0)))) ->  | H32: =IF(OR(F32<0,F32>359,F32="",F33=""),"",IF((ROUND(((180/PI())*(((PI()/180)*F32)+SIN((E33/$J$3)*(SIN(((PI()/180)*E32)-((PI()/180)*F32)))))-F33-AL63),0))>=360,ROUND(((180/PI())*(((PI()/180)*F32)+SIN((E33/$J$3)*(SIN(((PI()/180)*E32)-((PI()/180)*F32))))))-F33-AL63,0)-360,IF((ROUND(((180/PI())*(((PI()/180)*F32)+SIN((E33/$J$3)*(SIN(((PI()/180)*E32)-((PI()/180)*F32)))))-F33-AL63),0))<0,ROUND(((180/PI())*(((PI()/180)*F32)+SIN((E33/$J$3)*(SIN(((PI()/180)*E32)-((PI()/180)*F32))))))-F33-AL63,0)+360,ROUND(((180/PI())*(((PI()/180)*F32)+SIN((E33/$J$3)*(SIN(((PI()/180)*E32)-((PI()/180)*F32)))))-F33-AL63),0)))) ->  | I32: =IF(OR(B31="",B31=B7),"",0) ->  | J32: =IF(OR(F32<0,F32>359,F32=""),"",ROUND($J$3*SQRT((1-((($E33/$J$3)*(SIN(((PI()/180)*$E32)-((PI()/180)*F32))))^2)))-($E33*COS(((PI()/180)*$E32)-((PI()/180)*F32))),0)) ->  | K32: =IF(OR(I32=0,I32="",F32=""),"",ROUND(((I32/J32)*60),1)) ->  | AE32: =AH33*SIN((ABS((AE30*10)-AF33)*PI()/180)) ->  | AF32: CW | AG32: =AH33*SIN((ABS((AG30*10)-AF33)*PI()/180)) ->  | AH32: CW | AI32: =IF(ABS(AE32)<15,IF(ABS(AG32)<15,"OK","DANGER")) -> 
A33: 0 | E33: =IF(OR(B31="",B31=B7),"",J$6) ->  | F33: =IF(OR(B31="",B31=B7,F31=""),"",F31) ->  | I33: =IF(OR(B31="",B31=B7),"",IF(OR(B31="",I31=""),"",I31)) ->  | K33: =IF(K32="","","TOT: "&K20+K22+K24+K26+K28+K30+K32) ->  | AE33: W | AF33: =IF(OR(B7="",B7=0),"",VLOOKUP(B7,A20:E36,5,FALSE)) ->  | AG33: V | AH33: =IF(OR(B7="",B7=0),"",VLOOKUP(B7,B20:E37,4,FALSE)) -> 
A34: 0 | B34: =IF(OR(B33="",B33=B7),"",B33) ->  | E34: =IF(OR(B33="",B33=B7),"",I$6) ->  | G34: =IF(OR(F34<0,F34>359,F34="",F35=""),"",IF((ROUND(((180/PI())*(((PI()/180)*F34)+SIN((E35/$J$3)*(SIN(((PI()/180)*E34)-((PI()/180)*F34)))))-F35),0))>=360,ROUND(((180/PI())*(((PI()/180)*F34)+SIN((E35/$J$3)*(SIN(((PI()/180)*E34)-((PI()/180)*F34))))))-F35,0)-360,IF((ROUND(((180/PI())*(((PI()/180)*F34)+SIN((E35/$J$3)*(SIN(((PI()/180)*E34)-((PI()/180)*F34)))))-F35),0))<0,ROUND(((180/PI())*(((PI()/180)*F34)+SIN((E35/$J$3)*(SIN(((PI()/180)*E34)-((PI()/180)*F34))))))-F35,0)+360,ROUND(((180/PI())*(((PI()/180)*F34)+SIN((E35/$J$3)*(SIN(((PI()/180)*E34)-((PI()/180)*F34)))))-F35),0)))) ->  | H34: =IF(OR(F34<0,F34>359,F34="",F35=""),"",IF((ROUND(((180/PI())*(((PI()/180)*F34)+SIN((E35/$J$3)*(SIN(((PI()/180)*E34)-((PI()/180)*F34)))))-F35-AL64),0))>=360,ROUND(((180/PI())*(((PI()/180)*F34)+SIN((E35/$J$3)*(SIN(((PI()/180)*E34)-((PI()/180)*F34))))))-F35-AL64,0)-360,IF((ROUND(((180/PI())*(((PI()/180)*F34)+SIN((E35/$J$3)*(SIN(((PI()/180)*E34)-((PI()/180)*F34)))))-F35-AL64),0))<0,ROUND(((180/PI())*(((PI()/180)*F34)+SIN((E35/$J$3)*(SIN(((PI()/180)*E34)-((PI()/180)*F34))))))-F35-AL64,0)+360,ROUND(((180/PI())*(((PI()/180)*F34)+SIN((E35/$J$3)*(SIN(((PI()/180)*E34)-((PI()/180)*F34)))))-F35-AL64),0)))) ->  | I34: =IF(OR(B33="",B33=B7),"",0) ->  | J34: =IF(OR(F34<0,F34>359,F34=""),"",ROUND($J$3*SQRT((1-((($E35/$J$3)*(SIN(((PI()/180)*$E34)-((PI()/180)*F34))))^2)))-($E35*COS(((PI()/180)*$E34)-((PI()/180)*F34))),0)) ->  | K34: =IF(OR(I34=0,I34="",F34=""),"",ROUND(((I34/J34)*60),1)) ->  | AE34: PREFERRED QFU | AG34: =IF(AI32="OK",AI31,"DANGER") -> 
A35: 0 | E35: =IF(OR(B33="",B33=B7),"",J$6) ->  | F35: =IF(OR(B33="",B33=B7,F33=""),"",F33) ->  | I35: =IF(OR(B33="",B33=B7),"",IF(OR(B33="",I33=""),"",I33)) ->  | K35: =IF(K34="","","TOT: "&K20+K22+K24+K26+K28+K30+K32+K34) -> 
A36: 0 | B36: =IF(OR(B35="",B35=B7),"",B35) ->  | E36: =IF(OR(B35="",B35=B7),"",I$6) ->  | G36: =IF(OR(F36<0,F36>359,F36="",F37=""),"",IF((ROUND(((180/PI())*(((PI()/180)*F36)+SIN((E37/$J$3)*(SIN(((PI()/180)*E36)-((PI()/180)*F36)))))-F37),0))>=360,ROUND(((180/PI())*(((PI()/180)*F36)+SIN((E37/$J$3)*(SIN(((PI()/180)*E36)-((PI()/180)*F36))))))-F37,0)-360,IF((ROUND(((180/PI())*(((PI()/180)*F36)+SIN((E37/$J$3)*(SIN(((PI()/180)*E36)-((PI()/180)*F36)))))-F37),0))<0,ROUND(((180/PI())*(((PI()/180)*F36)+SIN((E37/$J$3)*(SIN(((PI()/180)*E36)-((PI()/180)*F36))))))-F37,0)+360,ROUND(((180/PI())*(((PI()/180)*F36)+SIN((E37/$J$3)*(SIN(((PI()/180)*E36)-((PI()/180)*F36)))))-F37),0)))) ->  | H36: =IF(OR(F36<0,F36>359,F36="",F37=""),"",IF((ROUND(((180/PI())*(((PI()/180)*F36)+SIN((E37/$J$3)*(SIN(((PI()/180)*E36)-((PI()/180)*F36)))))-F37-AL65),0))>=360,ROUND(((180/PI())*(((PI()/180)*F36)+SIN((E37/$J$3)*(SIN(((PI()/180)*E36)-((PI()/180)*F36))))))-F37-AL65,0)-360,IF((ROUND(((180/PI())*(((PI()/180)*F36)+SIN((E37/$J$3)*(SIN(((PI()/180)*E36)-((PI()/180)*F36)))))-F37-AL65),0))<0,ROUND(((180/PI())*(((PI()/180)*F36)+SIN((E37/$J$3)*(SIN(((PI()/180)*E36)-((PI()/180)*F36))))))-F37-AL65,0)+360,ROUND(((180/PI())*(((PI()/180)*F36)+SIN((E37/$J$3)*(SIN(((PI()/180)*E36)-((PI()/180)*F36)))))-F37-AL65),0)))) ->  | I36: =IF(OR(B35="",B35=B7),"",0) ->  | J36: =IF(OR(F36<0,F36>359,F36=""),"",ROUND($J$3*SQRT((1-((($E37/$J$3)*(SIN(((PI()/180)*$E36)-((PI()/180)*F36))))^2)))-($E37*COS(((PI()/180)*$E36)-((PI()/180)*F36))),0)) ->  | K36: =IF(OR(I36=0,I36="",F36=""),"",ROUND(((I36/J36)*60),1)) -> 
E37: =IF(OR(B35="",B35=B7),"",J$6) ->  | F37: =IF(OR(B35="",B35=B7,F35=""),"",F35) ->  | I37: =IF(OR(B35="",B35=B7),"",IF(OR(B35="",I35=""),"",I35)) ->  | K37: =IF(K36="","","TOT: "&K20+K22+K24+K26+K28+K30+K32+K34+K36) -> 
C38: Fuel trip | E38: =IF(OR(F3="",F3=1),"SELECT DAY OR NIGHT in F3",IF(F3=2,"DAY: +30 min spare",IF(F3=3,"NIGHT: + 45 min spare","UNKOWN ERROR"))) -> SELECT DAY OR NIGHT in F3 | G38: Max drift correction | I38: TOTAL | J38: Avg GS | K38: TOTAL TIME | AT38: =IF(ISERROR(VLOOKUP(AS38,$AE$38:$AQ$46,3,FALSE)),"",VLOOKUP(AS38,$AE$38:$AQ$46,3,FALSE)) ->  | AU38: =IF(ISERROR(VLOOKUP(AS38,$AE$38:$AQ$46,2,FALSE)),"",VLOOKUP(AS38,$AE$38:$AQ$46,2,FALSE)) ->  | AV38: =IF(ISERROR(VLOOKUP(AS38,$AE$38:$AQ$46,4,FALSE)),"",VLOOKUP(AS38,$AE$38:$AQ$46,4,FALSE)) ->  | AW38: =IF(ISERROR(VLOOKUP(AS38,$AE$38:$AQ$46,5,FALSE)),"",VLOOKUP(AS38,$AE$38:$AQ$46,5,FALSE)) ->  | AX38: =IF(ISERROR(VLOOKUP(AS38,$AE$38:$AQ$46,6,FALSE)),"",VLOOKUP(AS38,$AE$38:$AQ$46,6,FALSE)) ->  | AY38: =IF(AX38="","",IF(AX38>180,AX38-180,AX38+180)) ->  | AZ38: =IF(ISERROR(VLOOKUP(AS38,$AE$38:$AQ$46,7,FALSE)),"",VLOOKUP(AS38,$AE$38:$AQ$46,7,FALSE)) ->  | BA38: =IF(ISERROR(VLOOKUP(AS38,$AE$38:$AQ$46,8,FALSE)),"",VLOOKUP(AS38,$AE$38:$AQ$46,8,FALSE)) ->  | BB38: =IF(ISERROR(VLOOKUP(AS38,$AE$38:$AQ$46,9,FALSE)),"",VLOOKUP(AS38,$AE$38:$AQ$46,9,FALSE)) ->  | BC38: =IF(ISERROR(VLOOKUP(AS38,$AE$38:$AQ$46,10,FALSE)),"",VLOOKUP(AS38,$AE$38:$AQ$46,10,FALSE)) ->  | BD38: =IF(ISERROR(VLOOKUP(AS38,$AE$38:$AQ$46,11,FALSE)),"",VLOOKUP(AS38,$AE$38:$AQ$46,11,FALSE)) ->  | BE38: =IF(ISERROR(VLOOKUP(AS38,$AE$38:$AQ$46,12,FALSE)),"",VLOOKUP(AS38,$AE$38:$AQ$46,12,FALSE)) ->  | BF38: =IF(ISERROR(VLOOKUP(AS38,$AF$38:$AR$46,13,FALSE)),"",VLOOKUP(AS38,$AF$38:$AR$46,13,FALSE)) -> 
C39: =IF('W&B FORM'!M16="NOT ENOUGH FUEL TO COMPLETE THE TRIP","ADD FUEL",($L$3/60*$K$39)+('W&B FORM'!H14)) -> 3.0283296 | D39: =IF(C39="ADD FUEL","ADD FUEL",C39/3.785412) -> 0.8 | E39: =IF(F3=2,IF(L2="","SELECT PLANE",IF(OR(C39="ADD FUEL",C39>L2,(C39+(L3/60*30)>L2)),"ADD "&ROUNDUP(C39+(L3/60*30)-L2,0)&" l FUEL",(C39+(L3/60*30)))),IF(F3=3,IF(L2="","SELECT PLANE",IF(OR(C39="ADD FUEL",C39>L2,(C39+(L3/60*45)>L2)),"ADD "&ROUNDUP(C39+(L3/60*45)-L2,0)&" l FUEL",(C39+(L3/60*45)))),IF(F3=1,"SELECT DAY OR NIGHT in F3"))) -> SELECT DAY OR NIGHT in F3 | G39: =MAX(E21,E23,E25,E27,E29,E31,E33,E35,E37)*60/J3 -> 0 | I39: =SUM(I20,I22,I24,I26,I28,I30,I32,I34,I36) -> 0 | J39: =IF(ISERROR((I39/K39)*60),"",ROUND((I39/K39)*60,0)) ->  | K39: =ROUND(SUM(K20:K37),0) -> 0 | AT39: =IF(ISERROR(VLOOKUP(AS39,$AE$38:$AQ$46,3,FALSE)),"",VLOOKUP(AS39,$AE$38:$AQ$46,3,FALSE)) ->  | AU39: =IF(ISERROR(VLOOKUP(AS39,$AE$38:$AQ$46,2,FALSE)),"",VLOOKUP(AS39,$AE$38:$AQ$46,2,FALSE)) ->  | AV39: =IF(ISERROR(VLOOKUP(AS39,$AE$38:$AQ$46,4,FALSE)),"",VLOOKUP(AS39,$AE$38:$AQ$46,4,FALSE)) ->  | AW39: =IF(ISERROR(VLOOKUP(AS39,$AE$38:$AQ$46,5,FALSE)),"",VLOOKUP(AS39,$AE$38:$AQ$46,5,FALSE)) ->  | AX39: =IF(ISERROR(VLOOKUP(AS39,$AE$38:$AQ$46,6,FALSE)),"",VLOOKUP(AS39,$AE$38:$AQ$46,6,FALSE)) -> 
C40: Remaining | E40: Autonomy (incl. spare fuel) | G40: PNR (TIME) | I40: PNR (DIST) | J40: PET (DIST) | K40: PET (TIME) | AD40: Selected plane | AF40: =E2 -> 1 | AG40: =VLOOKUP(AF40,AD13:AE17,2,FALSE) -> SELECT | AI40: max fuel | AJ40: =VLOOKUP(AG40,AF41:AG44,2,FALSE) -> 
C41: =IF(ISERROR((+L2)-C39),"",IF((+L2)-C39<0,"ADD FUEL",(+L2)-C39)) ->  | D41: =IF(C41="","",IF(C41="ADD FUEL","ADD FUEL",C41/3.785412)) ->  | E41: =IF(ISERROR(ROUND(((L2)/(L3)*60),0)),"",IF(TRUNC(ROUND(((L2)/(L3)*60),0)/60)<10,"0"&TRUNC(ROUND(((L2)/(L3)*60),0)/60)&":",TRUNC(ROUND(((L2)/(L3)*60),0)/60)&":")&IF(MOD(ROUND(((L2)/(L3)*60),0),60)<10,"0"&MOD(ROUND(((L2)/(L3)*60),0),60),MOD(ROUND(((L2)/(L3)*60),0),60))) ->  | G41: =IF(ISERROR(H42*AU68/(J39+AU68)),"",H42*AU68/(J39+AU68)) ->  | I41: =IF(ISERROR((G41/60)*J39),"",(G41/60)*J39) ->  | J41: =IF(ISERROR((I39*AU68)/(J39+AU68)),"",(I39*AU68)/(J39+AU68)) ->  | K41: =IF(ISERROR((J41/J39)*60),"",(J41/J39)*60) ->  | AF41: OO-VCL | AG41: ='OO-VCL'!E4 -> 141.95295 | AH41: l | AY41: =IF(AX41="","",IF(AX41>180,AX41-180,AX41+180)) -> 
H42: =IF(ISERROR(ROUND(((L2)/(L3)*60)-('W&B FORM'!H14),0)),"",ROUND(((L2)/(L3)*60)-('W&B FORM'!H14),0)) ->  | AF42: OO-BET | AG42: ='OO-BET'!E4 -> 141.95295 | AH42: l
B43: FREQUENCIES | F43: EN ROUTE & ARRIVAL INFORMATION | AF43: OO-VCR | AG43: ='OO-VCR'!E4 -> 92.742594 | AH43: l
B44: BUB | C44: 114.6 | F44: REPORTING POINTS | I44: ALT | J44: NOTES | AF44: OO-VCM | AG44: ='OO-VCM'!E4 -> 92.742594 | AH44: l
B45: AFI | C45: 114.9 | F45: =IF(B7="EBGB","LONDI","") ->  | I45: =IF(B7="EBGB","900 ft","") ->  | J45: =IF(F45="LONDI","BUB 114,60 TO 121°","") -> 
B46: BUN | C46: 110.6 | F46: =IF(F45="LONDI","EBGB-FIELD","") ->  | I46: =IF(F45="LONDI","900 ft","") ->  | J46: =IF(F45="LONDI","FOLLOW TR 126° MAG","") -> 
B47: NIK | C47: 117.4
B48: Brussels Info (civ) | C48: 126.9 | J48: Preflight checks:
B49: Belgo Info (mil) | C49: 129.325 | K49:  AIP-info/charts
B50: Dutch mil info | C50: 132.35 | F50: CIRCUIT ALT (MSL) | K50:  NOTAMS | AD50: Compass deviation table and calculation of d for specific Rm=Rw-V
B51: Lille info | C51: 126.475 | F51: =IF(B7="","",IF(B7="EBGB","800 ft",SUM(F7,1000))) ->  | K51:  METEO | AD51: FOR | AE51: 0 | AF51: =AE51+30 -> 30 | AG51: =AF51+30 -> 60 | AH51: 90 | AI51: 120 | AJ51: 150 | AK51: 180 | AL51: 210 | AM51: 240 | AN51: 270 | AO51: =AN51+30 -> 300 | AP51: 330 | AQ51: 360
B52: Amsterdam Info | C52: 124.3 | F52: Filing & closing flight plans | J52: =IF(AND(E3=2,LEFT(B6,2)<>LEFT(B7,2),B7<>""),"CLOSE YOUR FLIGHTPLAN AND REGISTER YOUR NAVIGATION FLIGHT ON ARRIVAL IN "&B7,IF(E3=2,"REGISTER YOUR NAVIGATION FLIGHT ON ARRIVAL IN "&B7,"")) ->  | AD52: STEER | AE52: =IF($E$2="","",IF($E$2=3,HLOOKUP(AE51,'OO-BET'!$C$66:$O$67,2,FALSE),IF($E$2=2,HLOOKUP(AE51,'OO-VCL'!$C$66:$O$67,2,FALSE),IF($E$2=5,HLOOKUP(AE51,'OO-VCM'!$C$66:$O$67,2,FALSE),IF($E$2=4,HLOOKUP(AE51,'OO-VCR'!$C$66:$O$67,2,FALSE)))))) -> FALSE | AF52: =IF($E$2="","",IF($E$2=3,HLOOKUP(AF51,'OO-BET'!$C$66:$O$67,2,FALSE),IF($E$2=2,HLOOKUP(AF51,'OO-VCL'!$C$66:$O$67,2,FALSE),IF($E$2=5,HLOOKUP(AF51,'OO-VCM'!$C$66:$O$67,2,FALSE),IF($E$2=4,HLOOKUP(AF51,'OO-VCR'!$C$66:$O$67,2,FALSE)))))) -> FALSE | AG52: =IF($E$2="","",IF($E$2=3,HLOOKUP(AG51,'OO-BET'!$C$66:$O$67,2,FALSE),IF($E$2=2,HLOOKUP(AG51,'OO-VCL'!$C$66:$O$67,2,FALSE),IF($E$2=5,HLOOKUP(AG51,'OO-VCM'!$C$66:$O$67,2,FALSE),IF($E$2=4,HLOOKUP(AG51,'OO-VCR'!$C$66:$O$67,2,FALSE)))))) -> FALSE | AH52: =IF($E$2="","",IF($E$2=3,HLOOKUP(AH51,'OO-BET'!$C$66:$O$67,2,FALSE),IF($E$2=2,HLOOKUP(AH51,'OO-VCL'!$C$66:$O$67,2,FALSE),IF($E$2=5,HLOOKUP(AH51,'OO-VCM'!$C$66:$O$67,2,FALSE),IF($E$2=4,HLOOKUP(AH51,'OO-VCR'!$C$66:$O$67,2,FALSE)))))) -> FALSE | AI52: =IF($E$2="","",IF($E$2=3,HLOOKUP(AI51,'OO-BET'!$C$66:$O$67,2,FALSE),IF($E$2=2,HLOOKUP(AI51,'OO-VCL'!$C$66:$O$67,2,FALSE),IF($E$2=5,HLOOKUP(AI51,'OO-VCM'!$C$66:$O$67,2,FALSE),IF($E$2=4,HLOOKUP(AI51,'OO-VCR'!$C$66:$O$67,2,FALSE)))))) -> FALSE | AJ52: =IF($E$2="","",IF($E$2=3,HLOOKUP(AJ51,'OO-BET'!$C$66:$O$67,2,FALSE),IF($E$2=2,HLOOKUP(AJ51,'OO-VCL'!$C$66:$O$67,2,FALSE),IF($E$2=5,HLOOKUP(AJ51,'OO-VCM'!$C$66:$O$67,2,FALSE),IF($E$2=4,HLOOKUP(AJ51,'OO-VCR'!$C$66:$O$67,2,FALSE)))))) -> FALSE | AK52: =IF($E$2="","",IF($E$2=3,HLOOKUP(AK51,'OO-BET'!$C$66:$O$67,2,FALSE),IF($E$2=2,HLOOKUP(AK51,'OO-VCL'!$C$66:$O$67,2,FALSE),IF($E$2=5,HLOOKUP(AK51,'OO-VCM'!$C$66:$O$67,2,FALSE),IF($E$2=4,HLOOKUP(AK51,'OO-VCR'!$C$66:$O$67,2,FALSE)))))) -> FALSE | AL52: =IF($E$2="","",IF($E$2=3,HLOOKUP(AL51,'OO-BET'!$C$66:$O$67,2,FALSE),IF($E$2=2,HLOOKUP(AL51,'OO-VCL'!$C$66:$O$67,2,FALSE),IF($E$2=5,HLOOKUP(AL51,'OO-VCM'!$C$66:$O$67,2,FALSE),IF($E$2=4,HLOOKUP(AL51,'OO-VCR'!$C$66:$O$67,2,FALSE)))))) -> FALSE | AM52: =IF($E$2="","",IF($E$2=3,HLOOKUP(AM51,'OO-BET'!$C$66:$O$67,2,FALSE),IF($E$2=2,HLOOKUP(AM51,'OO-VCL'!$C$66:$O$67,2,FALSE),IF($E$2=5,HLOOKUP(AM51,'OO-VCM'!$C$66:$O$67,2,FALSE),IF($E$2=4,HLOOKUP(AM51,'OO-VCR'!$C$66:$O$67,2,FALSE)))))) -> FALSE | AN52: =IF($E$2="","",IF($E$2=3,HLOOKUP(AN51,'OO-BET'!$C$66:$O$67,2,FALSE),IF($E$2=2,HLOOKUP(AN51,'OO-VCL'!$C$66:$O$67,2,FALSE),IF($E$2=5,HLOOKUP(AN51,'OO-VCM'!$C$66:$O$67,2,FALSE),IF($E$2=4,HLOOKUP(AN51,'OO-VCR'!$C$66:$O$67,2,FALSE)))))) -> FALSE | AO52: =IF($E$2="","",IF($E$2=3,HLOOKUP(AO51,'OO-BET'!$C$66:$O$67,2,FALSE),IF($E$2=2,HLOOKUP(AO51,'OO-VCL'!$C$66:$O$67,2,FALSE),IF($E$2=5,HLOOKUP(AO51,'OO-VCM'!$C$66:$O$67,2,FALSE),IF($E$2=4,HLOOKUP(AO51,'OO-VCR'!$C$66:$O$67,2,FALSE)))))) -> FALSE | AP52: =IF($E$2="","",IF($E$2=3,HLOOKUP(AP51,'OO-BET'!$C$66:$O$67,2,FALSE),IF($E$2=2,HLOOKUP(AP51,'OO-VCL'!$C$66:$O$67,2,FALSE),IF($E$2=5,HLOOKUP(AP51,'OO-VCM'!$C$66:$O$67,2,FALSE),IF($E$2=4,HLOOKUP(AP51,'OO-VCR'!$C$66:$O$67,2,FALSE)))))) -> FALSE | AQ52: =IF($E$2="","",IF($E$2=3,HLOOKUP(AQ51,'OO-BET'!$C$66:$O$67,2,FALSE),IF($E$2=2,HLOOKUP(AQ51,'OO-VCL'!$C$66:$O$67,2,FALSE),IF($E$2=5,HLOOKUP(AQ51,'OO-VCM'!$C$66:$O$67,2,FALSE),IF($E$2=4,HLOOKUP(AQ51,'OO-VCR'!$C$66:$O$67,2,FALSE)))))) -> FALSE
B53: Brussels VOLMET | C53: 127.805 | F53: Belgium | H53: + 32 2 206 25 40
B54: Emergency | C54: 121.5 | F54: France | H54: 0810 437 837 | U54: =Introduction!A5&" | "&Introduction!E5 -> remarks? tony.opsomer@gmail.com | version 2023-07-15
AE55: journey | AM55: journey Back
B56: This document is provided for secondary flightplanning and navigation only. It is the user/pilot's sole responsibility to verify the correctness of all information provided by this sheet. Thanks to Luc Verhoeven and Michaël Debusscher for their valuable contribute to this flight log | O56: =B56 -> This document is provided for secondary flightplanning and navigation only. It is the user/pilot's sole responsibility to verify the correctness of all information provided by this sheet. Thanks to Luc Verhoeven and Michaël Debusscher for their valuable contribute to this flight log | AE56: Rw | AF56: V | AG56: Rm=Rw-V | AH56: LOOK UP BETWEEN (FOR) | AJ56: LOOK UP BETWEEN (STEER) | AL56: d | AM56: Rw | AN56: V | AO56: Rm=Rw-V | AP56: LOOK UP BETWEEN (FOR) | AR56: LOOK UP BETWEEN (STEER) | AT56: d | AU56: GS back | AV56: EET back
AE57: =F20 -> 0 | AF57: =F21 -> 0 | AG57: =AE57-AF57 -> 0 | AH57: =TRUNC(AE57/30)*30 -> 0 | AI57: =AH57+30 -> 30 | AJ57: =HLOOKUP(AH57,$AE$51:$AQ$52,2,FALSE) -> FALSE | AK57: =HLOOKUP(AI57,$AE$51:$AQ$52,2,FALSE) -> FALSE | AL57: =AG57-(AJ57+((AG57-AH57)/(AI57-AH57)*(AK57-AJ57))) -> 0 | AM57: =IF(AE57+180>=360,AE57-180,AE57+180) -> 180 | AN57: =F21 -> 0 | AO57: =AM57-AN57 -> 180 | AP57: =TRUNC(AO57/30,0)*30 -> 180 | AQ57: =AP57+30 -> 210 | AR57: =HLOOKUP(AP57,$AD$51:$AP$52,2,FALSE) -> FALSE | AS57: FALSE | AT57: =AO57-(AR57+((AO57-AP57)/(AQ57-AP57)*(AS57-AR57))) -> 180 | AU57: =ROUND($J$3*SQRT((1-((($E21/$J$3)*(SIN(((PI()/180)*$E20)-((PI()/180)*AM57))))^2)))-($E21*COS(((PI()/180)*$E20)-((PI()/180)*AM57))),0) ->  | AV57: =IF(ISERROR(ROUND(((I20/AU57)*60),1)),"",ROUND(((I20/AU57)*60),1)) -> 
AE58: =F22 -> 0 | AF58: =F23 ->  | AG58: =AE58-AF58 ->  | AH58: =TRUNC(AE58/30)*30 -> 0 | AI58: =AH58+30 -> 30 | AJ58: FALSE | AK58: FALSE | AM58: =IF(AE58+180>=360,AE58-180,AE58+180) -> 180 | AN58: =F23 ->  | AO58: =AM58-AN58 ->  | AP58: =TRUNC(AO58/30,0)*30 ->  | AQ58: =AP58+30 ->  | AT58: =AO58-(AR58+((AO58-AP58)/(AQ58-AP58)*(AS58-AR58))) ->  | AU58: =ROUND($J$3*SQRT((1-((($E23/$J$3)*(SIN(((PI()/180)*$E22)-((PI()/180)*AM58))))^2)))-($E23*COS(((PI()/180)*$E22)-((PI()/180)*AM58))),0) ->  | AV58: =IF(ISERROR(ROUND(((I22/AU58)*60),1)),"",ROUND(((I22/AU58)*60),1)) -> 
AE59: =F24 -> 0 | AF59: =F25 ->  | AH59: 0 | AI59: 30 | AJ59: FALSE | AK59: FALSE | AM59: 180 | AN59: =F25 ->  | AP59: =TRUNC(AO59/30,0)*30 ->  | AU59: =ROUND($J$3*SQRT((1-((($E25/$J$3)*(SIN(((PI()/180)*$E24)-((PI()/180)*AM59))))^2)))-($E25*COS(((PI()/180)*$E24)-((PI()/180)*AM59))),0) ->  | AV59: =IF(ISERROR(ROUND(((I24/AU59)*60),1)),"",ROUND(((I24/AU59)*60),1)) -> 
AE60: =F26 -> 0 | AF60: =F27 ->  | AH60: 0 | AI60: 30 | AJ60: FALSE | AK60: FALSE | AM60: 180 | AN60: =F27 ->  | AU60: =ROUND($J$3*SQRT((1-((($E27/$J$3)*(SIN(((PI()/180)*$E26)-((PI()/180)*AM60))))^2)))-($E27*COS(((PI()/180)*$E26)-((PI()/180)*AM60))),0) ->  | AV60: =IF(ISERROR(ROUND(((I26/AU60)*60),1)),"",ROUND(((I26/AU60)*60),1)) -> 
AE61: =F28 -> 0 | AF61: =F29 ->  | AH61: 0 | AI61: 30 | AJ61: FALSE | AK61: FALSE | AM61: 180 | AN61: =F29 ->  | AU61: =ROUND($J$3*SQRT((1-((($E29/$J$3)*(SIN(((PI()/180)*$E28)-((PI()/180)*AM61))))^2)))-($E29*COS(((PI()/180)*$E28)-((PI()/180)*AM61))),0) ->  | AV61: =IF(ISERROR(ROUND(((I28/AU61)*60),1)),"",ROUND(((I28/AU61)*60),1)) -> 
AE62: =F30 -> 0 | AF62: =F31 ->  | AH62: 0 | AI62: 30 | AJ62: FALSE | AK62: FALSE | AM62: 180 | AN62: =F31 ->  | AU62: =ROUND($J$3*SQRT((1-((($E31/$J$3)*(SIN(((PI()/180)*$E30)-((PI()/180)*AM62))))^2)))-($E31*COS(((PI()/180)*$E30)-((PI()/180)*AM62))),0) ->  | AV62: =IF(ISERROR(ROUND(((I30/AU62)*60),1)),"",ROUND(((I30/AU62)*60),1)) -> 
AE63: =F32 -> 0 | AF63: =F33 ->  | AH63: 0 | AI63: 30 | AJ63: FALSE | AK63: FALSE | AM63: 180 | AN63: =F33 ->  | AU63: =ROUND($J$3*SQRT((1-((($E33/$J$3)*(SIN(((PI()/180)*$E31)-((PI()/180)*AM63))))^2)))-($E33*COS(((PI()/180)*$E31)-((PI()/180)*AM63))),0) ->  | AV63: =IF(ISERROR(ROUND(((I32/AU63)*60),1)),"",ROUND(((I32/AU63)*60),1)) -> 
AE64: =F34 -> 0 | AF64: =F35 ->  | AH64: 0 | AI64: 30 | AJ64: FALSE | AK64: FALSE | AM64: 180 | AN64: =F35 ->  | AU64: =ROUND($J$3*SQRT((1-((($E35/$J$3)*(SIN(((PI()/180)*$E34)-((PI()/180)*AM64))))^2)))-($E35*COS(((PI()/180)*$E34)-((PI()/180)*AM64))),0) ->  | AV64: =IF(ISERROR(ROUND(((I34/AU64)*60),1)),"",ROUND(((I34/AU64)*60),1)) -> 
AE65: =F36 -> 0 | AF65: =F37 ->  | AH65: 0 | AI65: 30 | AJ65: FALSE | AK65: FALSE | AM65: 180 | AN65: =F37 ->  | AU65: =ROUND($J$3*SQRT((1-((($E37/$J$3)*(SIN(((PI()/180)*$E36)-((PI()/180)*AM65))))^2)))-($E37*COS(((PI()/180)*$E36)-((PI()/180)*AM65))),0) ->  | AV65: =IF(ISERROR(ROUND(((I36/AU65)*60),1)),"",ROUND(((I36/AU65)*60),1)) -> 
AU67: mean GS back | AV67: TOTAL EET back
AU68: =(I39/AV68)*60 ->  | AV68: =SUM(AV57:AV65) -> 0

Sheet Flight log FORM (REVISED) (hidden)
B2: VFR FLIGHT LOG | VCG BE.DTO.113 | E2: 1 | F2: FLIGHT TYPE | G2: VCG PILOT N°: | J2: TEMP | L2: FUEL TANK | M2: =IF(E2=1,"",AK40) ->  | N2: =IF(M2="","",M2/3.785412) ->  | P2: To be completed by a VCG flight instructor (FI) in case of student flight | V2: Notes | AE2: Calculations
E3: 1 | F3: 1 | G3: DATE: | I3: =TODAY() -> 2023-07-15 | J3: TAS | K3: 95 | L3: Consumption | M3: =MAX('C152 Performance specs'!F33:F65,'C152 Performance specs'!I33:I65,'C152 Performance specs'!L33:L65)*3.785412 -> 23.4695544 | N3: =M3/3.785412 -> 6.2 | P3: Date of Flight
B4: =Introduction!A5&" | "&Introduction!E5 -> remarks? tony.opsomer@gmail.com | version 2023-07-15 | E4: =IF(AND(E3=2,LEFT(B6,2)<>LEFT(B7,2),B7<>""),"DON'T FORGET TO FILE A FLIGHTPLAN AND REGISTER THE FLIGHT BEFORE TAKEOFF!",IF(AND(OR(E3=3,E3=2),LEFT(B6,2)=LEFT(B7,2)),"DON'T FORGET TO REGISTER THE FLIGHT BEFORE TAKEOFF!","")) ->  | I4: Pilot Name | P4: Name and signature of student pilot
B5: Airfield | C5: Gnd freq | D5: Twr / Rad freq | E5: ATIS freq | F5: Elev | G5: QNH | I5: W | J5: V | K5: RWY | M5: Preferred RWY | N5: RWY length | P5: Name of FI
D6: =IF(B6="EBGB",119.505,"") ->  | F6: =IF(B6="EBGB",70,"") ->  | K6: =IF(B6="EBGB","01-19","") ->  | M6: =IF(ISERROR(AH29),"",AH29) ->  | N6: =IF(B6="EBGB",615,"") ->  | P6: FI number
B7: =IF(E3=3,"EBGB","") ->  | E7: =IF(E3=3,E6,"") ->  | F7: =IF(E3=3,F6,IF(B7="EBGB",70,"")) ->  | G7: =IF(E3=3,G6,IF(G6="","",G6)) ->  | I7: =IF(B7=B6,I6,IF(OR(AG33=0,ISERROR(AG33)),"",AG33)) -> 0 | J7: =IF(OR(AI33=0,ISERROR(AI33)),"",IF(B7=B6,J6,AI33)) -> 0 | K7: =IF(B7="EBGB","01-19","") ->  | M7: =IF(ISERROR(AH34),"",IF(B7=B6,M6,AH34)) ->  | N7: =IF(E3=3,N6,IF(B7="EBGB",615,"")) ->  | AE7: dropdown list
B9: ALTERNATES | E9: Elev | K9: Elev | P9: FI signature | S9: A student pilot is NOT allowed to continue his/her flight when anomalies occurred or after landing at another aerodrome than originally intended (EASA FCL.020 FCL.045)
C10: RWY | E10: Radio freq | I10: RWY | K10: Radio freq | P10: Vliegclub Grimbergen
C11: LDA | I11: LDA | P11: BE.DTO.113
B13: SQWK-codes | C13: Standard VFR | E13: 2000 if ATS 7000 if no ATS | F13: Hijack | G13: 7500 | I13: Radio failure | K13: 7600 | M13: Distress | N13: 7700 | P13: Light gun signals | V13: Interception signals | AE13: 1 | AF13: SELECT | AI13: 1 | AJ13: SELECT
AE14: 2 | AF14: OO-VCL | AI14: 2 | AJ14: NAV
B15: NEW SQWK | C15: 0041-0057 (VFR - Bru info) | E15: NEW QNH | K15: TAKE-OFF TIME | M15: : | AE15: 3 | AF15: OO-BET | AI15: 3 | AJ15: LOC
AE16: 4 | AF16: OO-VCR
B17: From / To | C17: VOR | E17: W / V | F17: true CRS / Var | G17: magn. HDG | H17: Cc | I17: DIST / Cruise ALT | J17: GS | K17: EET / TOT. EET | L17: EST. ETA / REAL ETA | M17: Enroute radio / Frequency | AE17: 5 | AF17: OO-VCM
C18: Name | D18: Bearing | AI18: 1 | AJ18: SELECT
C19: Freq | D19: TO/FROM | AI19: 2 | AJ19: DAY
A20: =IF(B21=$B$7,$B$7,"") ->  | B20: =IF(B6="","",B6) ->  | E20: =IF(I6="","",I6) ->  | G20: =IF(OR(F20<0,F20>359,F20="",F21=""),"",IF((ROUND(((180/PI())*(((PI()/180)*F20)+SIN((E21/$K$3)*(SIN(((PI()/180)*E20)-((PI()/180)*F20)))))-F21),0))>=360,ROUND(((180/PI())*(((PI()/180)*F20)+SIN((E21/$K$3)*(SIN(((PI()/180)*E20)-((PI()/180)*F20))))))-F21,0)-360,IF((ROUND(((180/PI())*(((PI()/180)*F20)+SIN((E21/$K$3)*(SIN(((PI()/180)*E20)-((PI()/180)*F20)))))-F21),0))<0,ROUND(((180/PI())*(((PI()/180)*F20)+SIN((E21/$K$3)*(SIN(((PI()/180)*E20)-((PI()/180)*F20)))))-F21),0)+360,ROUND(((180/PI())*(((PI()/180)*F20)+SIN((E21/$K$3)*(SIN(((PI()/180)*E20)-((PI()/180)*F20)))))-F21),0)))) ->  | H20: =IF(OR(F20<0,F20>359,F20="",F21=""),"",IF((ROUND(((180/PI())*(((PI()/180)*F20)+SIN((E21/$K$3)*(SIN(((PI()/180)*E20)-((PI()/180)*F20)))))-F21-AM57),0))>=360,ROUND(((180/PI())*(((PI()/180)*F20)+SIN((E21/$K$3)*(SIN(((PI()/180)*E20)-((PI()/180)*F20))))))-F21-AM57,0)-360,IF((ROUND(((180/PI())*(((PI()/180)*F20)+SIN((E21/$K$3)*(SIN(((PI()/180)*E20)-((PI()/180)*F20)))))-F21-AM57),0))<0,ROUND(((180/PI())*(((PI()/180)*F20)+SIN((E21/$K$3)*(SIN(((PI()/180)*E20)-((PI()/180)*F20)))))-F21-AM57),0)+360,ROUND(((180/PI())*(((PI()/180)*F20)+SIN((E21/$K$3)*(SIN(((PI()/180)*E20)-((PI()/180)*F20)))))-F21-AM57),0)))) ->  | J20: =IF(OR(F20<0,F20>359,F20=""),"",ROUND($K$3*SQRT((1-((($E21/$K$3)*(SIN(((PI()/180)*$E20)-((PI()/180)*F20))))^2)))-($E21*COS(((PI()/180)*$E20)-((PI()/180)*F20))),0)) ->  | K20: =IF(OR(I20=0,I20="",F20=""),"",ROUND(((I20/J20)*60),1)) ->  | AI20: 3 | AJ20: NIGHT
A21: =IF(B22=$B$7,$B$7,"") ->  | E21: =IF(J6="","",J6) ->  | K21: =IF(K20="","","TOT: "&K20) -> 
B22: =IF(OR(B21="",B21=B7),"",B21) ->  | E22: =IF(OR(B21="",B21=B7),"",I$6) ->  | G22: =IF(OR(F22<0,F22>359,F22="",F23=""),"",IF((ROUND(((180/PI())*(((PI()/180)*F22)+SIN((E23/$K$3)*(SIN(((PI()/180)*E22)-((PI()/180)*F22)))))-F23),0))>=360,ROUND(((180/PI())*(((PI()/180)*F22)+SIN((E23/$K$3)*(SIN(((PI()/180)*E22)-((PI()/180)*F22))))))-F23,0)-360,IF((ROUND(((180/PI())*(((PI()/180)*F22)+SIN((E23/$K$3)*(SIN(((PI()/180)*E22)-((PI()/180)*F22)))))-F23),0))<0,ROUND(((180/PI())*(((PI()/180)*F22)+SIN((E23/$K$3)*(SIN(((PI()/180)*E22)-((PI()/180)*F22))))))-F23,0)+360,ROUND(((180/PI())*(((PI()/180)*F22)+SIN((E23/$K$3)*(SIN(((PI()/180)*E22)-((PI()/180)*F22)))))-F23),0)))) ->  | H22: =IF(OR(F22<0,F22>359,F22="",F23=""),"",IF((ROUND(((180/PI())*(((PI()/180)*F22)+SIN((E23/$K$3)*(SIN(((PI()/180)*E22)-((PI()/180)*F22)))))-F23-AM58),0))>=360,ROUND(((180/PI())*(((PI()/180)*F22)+SIN((E23/$K$3)*(SIN(((PI()/180)*E22)-((PI()/180)*F22))))))-F23-AM58,0)-360,IF((ROUND(((180/PI())*(((PI()/180)*F22)+SIN((E23/$K$3)*(SIN(((PI()/180)*E22)-((PI()/180)*F22)))))-F23-AM58),0))<0,ROUND(((180/PI())*(((PI()/180)*F22)+SIN((E23/$K$3)*(SIN(((PI()/180)*E22)-((PI()/180)*F22))))))-F23-AM58,0)+360,ROUND(((180/PI())*(((PI()/180)*F22)+SIN((E23/$K$3)*(SIN(((PI()/180)*E22)-((PI()/180)*F22)))))-F23-AM58),0)))) ->  | I22: =IF(OR(B21="",B21=B3),"",0) ->  | J22: =IF(OR(F22<0,F22>359,F22=""),"",ROUND($K$3*SQRT((1-((($E23/$K$3)*(SIN(((PI()/180)*$E22)-((PI()/180)*F22))))^2)))-($E23*COS(((PI()/180)*$E22)-((PI()/180)*F22))),0)) ->  | K22: =IF(OR(I22=0,I22="",F22=""),"",ROUND(((I22/J22)*60),1)) ->  | L22: =IF(OR(K20="",L20=""),"",TIME(HOUR(L20),MINUTE(L20)+ROUND(K20,0),SECOND(L20))) -> 
E23: =IF(OR(B21="",B21=B7),"",J$6) ->  | F23: =IF(OR(B21="",B21=B7,F21=""),"",F21) ->  | I23: =IF(OR(B21="",B21=B7),"",IF(OR(B21="",I21=""),"",I21)) ->  | K23: =IF(K22="","","TOT: "&K20+K22) ->  | AE23: Preferred QFU
B24: =IF(OR(B23="",B23=B7),"",B23) ->  | E24: =IF(OR(B23="",B23=B7),"",I$6) ->  | G24: =IF(OR(F24<0,F24>359,F24="",F25=""),"",IF((ROUND(((180/PI())*(((PI()/180)*F24)+SIN((E25/$K$3)*(SIN(((PI()/180)*E24)-((PI()/180)*F24)))))-F25),0))>=360,ROUND(((180/PI())*(((PI()/180)*F24)+SIN((E25/$K$3)*(SIN(((PI()/180)*E24)-((PI()/180)*F24))))))-F25,0)-360,IF((ROUND(((180/PI())*(((PI()/180)*F24)+SIN((E25/$K$3)*(SIN(((PI()/180)*E24)-((PI()/180)*F24)))))-F25),0))<0,ROUND(((180/PI())*(((PI()/180)*F24)+SIN((E25/$K$3)*(SIN(((PI()/180)*E24)-((PI()/180)*F24))))))-F25,0)+360,ROUND(((180/PI())*(((PI()/180)*F24)+SIN((E25/$K$3)*(SIN(((PI()/180)*E24)-((PI()/180)*F24)))))-F25),0)))) ->  | H24: =IF(OR(F24<0,F24>359,F24="",F25=""),"",IF((ROUND(((180/PI())*(((PI()/180)*F24)+SIN((E25/$K$3)*(SIN(((PI()/180)*E24)-((PI()/180)*F24)))))-F25-AM59),0))>=360,ROUND(((180/PI())*(((PI()/180)*F24)+SIN((E25/$K$3)*(SIN(((PI()/180)*E24)-((PI()/180)*F24))))))-F25-AM59,0)-360,IF((ROUND(((180/PI())*(((PI()/180)*F24)+SIN((E25/$K$3)*(SIN(((PI()/180)*E24)-((PI()/180)*F24)))))-F25-AM59),0))<0,ROUND(((180/PI())*(((PI()/180)*F24)+SIN((E25/$K$3)*(SIN(((PI()/180)*E24)-((PI()/180)*F24))))))-F25-AM59,0)+360,ROUND(((180/PI())*(((PI()/180)*F24)+SIN((E25/$K$3)*(SIN(((PI()/180)*E24)-((PI()/180)*F24)))))-F25-AM59),0)))) ->  | I24: =IF(OR(B23="",B23=B5),"",0) ->  | J24: =IF(OR(F24<0,F24>359,F24=""),"",ROUND($K$3*SQRT((1-((($E25/$K$3)*(SIN(((PI()/180)*$E24)-((PI()/180)*F24))))^2)))-($E25*COS(((PI()/180)*$E24)-((PI()/180)*F24))),0)) ->  | K24: =IF(OR(I24=0,I24="",F24=""),"",ROUND(((I24/J24)*60),1)) ->  | L24: =IF(OR(K22="",L22=""),"",TIME(HOUR(L22),MINUTE(L22)+ROUND(K22,0),SECOND(L22))) ->  | AE24: journey
E25: =IF(OR(B23="",B23=B7),"",J$6) ->  | F25: =IF(OR(B23="",B23=B7,F23=""),"",F23) ->  | I25: =IF(OR(B23="",B23=B7),"",IF(OR(B23="",I23=""),"",I23)) ->  | K25: =IF(K24="","","TOT: "&K20+K22+K24) ->  | AE25: =B6 -> 0 | AF25: =VALUE(LEFT(K6,2)) ->  | AH25: =VALUE(RIGHT(K6,2)) ->  | AJ25: CHECK
B26: =IF(OR(B25="",B25=B7),"",B25) ->  | E26: =IF(OR(B25="",B25=B7),"",I$6) ->  | G26: =IF(OR(F26<0,F26>359,F26="",F27=""),"",IF((ROUND(((180/PI())*(((PI()/180)*F26)+SIN((E27/$K$3)*(SIN(((PI()/180)*E26)-((PI()/180)*F26)))))-F27),0))>=360,ROUND(((180/PI())*(((PI()/180)*F26)+SIN((E27/$K$3)*(SIN(((PI()/180)*E26)-((PI()/180)*F26))))))-F27,0)-360,IF((ROUND(((180/PI())*(((PI()/180)*F26)+SIN((E27/$K$3)*(SIN(((PI()/180)*E26)-((PI()/180)*F26)))))-F27),0))<0,ROUND(((180/PI())*(((PI()/180)*F26)+SIN((E27/$K$3)*(SIN(((PI()/180)*E26)-((PI()/180)*F26))))))-F27,0)+360,ROUND(((180/PI())*(((PI()/180)*F26)+SIN((E27/$K$3)*(SIN(((PI()/180)*E26)-((PI()/180)*F26)))))-F27),0)))) ->  | H26: =IF(OR(F26<0,F26>359,F26="",F27=""),"",IF((ROUND(((180/PI())*(((PI()/180)*F26)+SIN((E27/$K$3)*(SIN(((PI()/180)*E26)-((PI()/180)*F26)))))-F27-AM60),0))>=360,ROUND(((180/PI())*(((PI()/180)*F26)+SIN((E27/$K$3)*(SIN(((PI()/180)*E26)-((PI()/180)*F26))))))-F27-AM60,0)-360,IF((ROUND(((180/PI())*(((PI()/180)*F26)+SIN((E27/$K$3)*(SIN(((PI()/180)*E26)-((PI()/180)*F26)))))-F27-AM60),0))<0,ROUND(((180/PI())*(((PI()/180)*F26)+SIN((E27/$K$3)*(SIN(((PI()/180)*E26)-((PI()/180)*F26))))))-F27-AM60,0)+360,ROUND(((180/PI())*(((PI()/180)*F26)+SIN((E27/$K$3)*(SIN(((PI()/180)*E26)-((PI()/180)*F26)))))-F27-AM60),0)))) ->  | I26: =IF(OR(B25="",B25=B7),"",0) ->  | J26: =IF(OR(F26<0,F26>359,F26=""),"",ROUND($K$3*SQRT((1-((($E27/$K$3)*(SIN(((PI()/180)*$E26)-((PI()/180)*F26))))^2)))-($E27*COS(((PI()/180)*$E26)-((PI()/180)*F26))),0)) ->  | K26: =IF(OR(I26=0,I26="",F26=""),"",ROUND(((I26/J26)*60),1)) ->  | L26: =IF(OR(K24="",L24=""),"",TIME(HOUR(L24),MINUTE(L24)+ROUND(K24,0),SECOND(L24))) ->  | AF26: =AI28*COS((ABS((AF25*10)-AG28)*PI()/180)) ->  | AG26: =IF(AF26<0,"TW",IF(AF26>=0,"HW",)) ->  | AH26: =AI28*COS((ABS((AH25*10)-AG28)*PI()/180)) ->  | AI26: =IF(AH26<0,"TW",IF(AH26>=0,"HW",)) ->  | AJ26: =IF(AF26<0,IF(AH26<0,"DANGER",IF(AF26<AH26,AH25,AF25)),AF25) -> 
E27: =IF(OR(B25="",B25=B7),"",J$6) ->  | F27: =IF(OR(B25="",B25=B7,F25=""),"",F25) ->  | I27: =IF(OR(B25="",B25=B7),"",IF(OR(B25="",I25=""),"",I25)) ->  | K27: =IF(K26="","","TOT: "&K20+K22+K24+K26) ->  | AF27: =AI28*SIN((ABS((AF25*10)-AG28)*PI()/180)) ->  | AG27: CW | AH27: =AI28*SIN((ABS((AH25*10)-AG28)*PI()/180)) ->  | AI27: CW | AJ27: =IF(ABS(AF27)<15,IF(ABS(AH27)<15,"OK","DANGER")) -> 
B28: =IF(OR(B27="",B27=B7),"",B27) ->  | E28: =IF(OR(B27="",B27=B7),"",I$6) ->  | G28: =IF(OR(F28<0,F28>359,F28="",F29=""),"",IF((ROUND(((180/PI())*(((PI()/180)*F28)+SIN((E29/$K$3)*(SIN(((PI()/180)*E28)-((PI()/180)*F28)))))-F29),0))>=360,ROUND(((180/PI())*(((PI()/180)*F28)+SIN((E29/$K$3)*(SIN(((PI()/180)*E28)-((PI()/180)*F28))))))-F29,0)-360,IF((ROUND(((180/PI())*(((PI()/180)*F28)+SIN((E29/$K$3)*(SIN(((PI()/180)*E28)-((PI()/180)*F28)))))-F29),0))<0,ROUND(((180/PI())*(((PI()/180)*F28)+SIN((E29/$K$3)*(SIN(((PI()/180)*E28)-((PI()/180)*F28))))))-F29,0)+360,ROUND(((180/PI())*(((PI()/180)*F28)+SIN((E29/$K$3)*(SIN(((PI()/180)*E28)-((PI()/180)*F28)))))-F29),0)))) ->  | H28: =IF(OR(F28<0,F28>359,F28="",F29=""),"",IF((ROUND(((180/PI())*(((PI()/180)*F28)+SIN((E29/$K$3)*(SIN(((PI()/180)*E28)-((PI()/180)*F28)))))-F29-AM61),0))>=360,ROUND(((180/PI())*(((PI()/180)*F28)+SIN((E29/$K$3)*(SIN(((PI()/180)*E28)-((PI()/180)*F28))))))-F29-AM61,0)-360,IF((ROUND(((180/PI())*(((PI()/180)*F28)+SIN((E29/$K$3)*(SIN(((PI()/180)*E28)-((PI()/180)*F28)))))-F29-AM61),0))<0,ROUND(((180/PI())*(((PI()/180)*F28)+SIN((E29/$K$3)*(SIN(((PI()/180)*E28)-((PI()/180)*F28))))))-F29-AM61,0)+360,ROUND(((180/PI())*(((PI()/180)*F28)+SIN((E29/$K$3)*(SIN(((PI()/180)*E28)-((PI()/180)*F28)))))-F29-AM61),0)))) ->  | I28: =IF(OR(B27="",B27=B7),"",0) ->  | J28: =IF(OR(F28<0,F28>359,F28=""),"",ROUND($K$3*SQRT((1-((($E29/$K$3)*(SIN(((PI()/180)*$E28)-((PI()/180)*F28))))^2)))-($E29*COS(((PI()/180)*$E28)-((PI()/180)*F28))),0)) ->  | K28: =IF(OR(I28=0,I28="",F28=""),"",ROUND(((I28/J28)*60),1)) ->  | L28: =IF(OR(K26="",L26=""),"",TIME(HOUR(L26),MINUTE(L26)+ROUND(K26,0),SECOND(L26))) ->  | AF28: W | AG28: =I6 -> 0 | AH28: V | AI28: =J6 -> 0
E29: =IF(OR(B27="",B27=B7),"",J$6) ->  | F29: =IF(OR(B27="",B27=B7,F27=""),"",F27) ->  | I29: =IF(OR(B27="",B27=B7),"",IF(OR(B27="",I27=""),"",I27)) ->  | K29: =IF(K28="","","TOT: "&K20+K22+K24+K26+K28) ->  | P29: Marshaller hand signals | AF29: PREFERRED QFU | AH29: =IF(AJ27="OK",AJ26,"DANGER") -> 
B30: =IF(OR(B29="",B29=B7),"",B29) ->  | E30: =IF(OR(B29="",B29=B7),"",I$6) ->  | G30: =IF(OR(F30<0,F30>359,F30="",F31=""),"",IF((ROUND(((180/PI())*(((PI()/180)*F30)+SIN((E31/$K$3)*(SIN(((PI()/180)*E30)-((PI()/180)*F30)))))-F31),0))>=360,ROUND(((180/PI())*(((PI()/180)*F30)+SIN((E31/$K$3)*(SIN(((PI()/180)*E30)-((PI()/180)*F30))))))-F31,0)-360,IF((ROUND(((180/PI())*(((PI()/180)*F30)+SIN((E31/$K$3)*(SIN(((PI()/180)*E30)-((PI()/180)*F30)))))-F31),0))<0,ROUND(((180/PI())*(((PI()/180)*F30)+SIN((E31/$K$3)*(SIN(((PI()/180)*E30)-((PI()/180)*F30))))))-F31,0)+360,ROUND(((180/PI())*(((PI()/180)*F30)+SIN((E31/$K$3)*(SIN(((PI()/180)*E30)-((PI()/180)*F30)))))-F31),0)))) ->  | H30: =IF(OR(F30<0,F30>359,F30="",F31=""),"",IF((ROUND(((180/PI())*(((PI()/180)*F30)+SIN((E31/$K$3)*(SIN(((PI()/180)*E30)-((PI()/180)*F30)))))-F31-AM62),0))>=360,ROUND(((180/PI())*(((PI()/180)*F30)+SIN((E31/$K$3)*(SIN(((PI()/180)*E30)-((PI()/180)*F30))))))-F31-AM62,0)-360,IF((ROUND(((180/PI())*(((PI()/180)*F30)+SIN((E31/$K$3)*(SIN(((PI()/180)*E30)-((PI()/180)*F30)))))-F31-AM62),0))<0,ROUND(((180/PI())*(((PI()/180)*F30)+SIN((E31/$K$3)*(SIN(((PI()/180)*E30)-((PI()/180)*F30))))))-F31-AM62,0)+360,ROUND(((180/PI())*(((PI()/180)*F30)+SIN((E31/$K$3)*(SIN(((PI()/180)*E30)-((PI()/180)*F30)))))-F31-AM62),0)))) ->  | I30: =IF(OR(B29="",B29=B7),"",0) ->  | J30: =IF(OR(F30<0,F30>359,F30=""),"",ROUND($K$3*SQRT((1-((($E31/$K$3)*(SIN(((PI()/180)*$E30)-((PI()/180)*F30))))^2)))-($E31*COS(((PI()/180)*$E30)-((PI()/180)*F30))),0)) ->  | K30: =IF(OR(I30=0,I30="",F30=""),"",ROUND(((I30/J30)*60),1)) ->  | L30: =IF(OR(K28="",L28=""),"",TIME(HOUR(L28),MINUTE(L28)+ROUND(K28,0),SECOND(L28))) ->  | AE30: =B7 ->  | AF30: =VALUE(LEFT(K7,2)) ->  | AH30: =VALUE(RIGHT(K7,2)) -> 
E31: =IF(OR(B29="",B29=B7),"",J$6) ->  | F31: =IF(OR(B29="",B29=B7,F29=""),"",F29) ->  | I31: =IF(OR(B29="",B29=B7),"",IF(OR(B29="",I29=""),"",I29)) ->  | K31: =IF(K30="","","TOT: "&K20+K22+K24+K26+K28+K30) ->  | AF31: =AI33*COS((ABS((AF30*10)-AG33)*PI()/180)) ->  | AG31: =IF(AF31<0,"TW",IF(AF31>=0,"HW",)) ->  | AH31: =AI33*COS((ABS((AH30*10)-AG33)*PI()/180)) ->  | AI31: =IF(AH31<0,"TW",IF(AH31>=0,"HW",)) ->  | AJ31: =IF(AF31<0,IF(AH31<0,"DANGER",IF(AF31<AH31,AH30,AF30)),AF30) -> 
B32: =IF(OR(B31="",B31=B7),"",B31) ->  | E32: =IF(OR(B31="",B31=B7),"",I$6) ->  | G32: =IF(OR(F32<0,F32>359,F32="",F33=""),"",IF((ROUND(((180/PI())*(((PI()/180)*F32)+SIN((E33/$K$3)*(SIN(((PI()/180)*E32)-((PI()/180)*F32)))))-F33),0))>=360,ROUND(((180/PI())*(((PI()/180)*F32)+SIN((E33/$K$3)*(SIN(((PI()/180)*E32)-((PI()/180)*F32))))))-F33,0)-360,IF((ROUND(((180/PI())*(((PI()/180)*F32)+SIN((E33/$K$3)*(SIN(((PI()/180)*E32)-((PI()/180)*F32)))))-F33),0))<0,ROUND(((180/PI())*(((PI()/180)*F32)+SIN((E33/$K$3)*(SIN(((PI()/180)*E32)-((PI()/180)*F32))))))-F33,0)+360,ROUND(((180/PI())*(((PI()/180)*F32)+SIN((E33/$K$3)*(SIN(((PI()/180)*E32)-((PI()/180)*F32)))))-F33),0)))) ->  | H32: =IF(OR(F32<0,F32>359,F32="",F33=""),"",IF((ROUND(((180/PI())*(((PI()/180)*F32)+SIN((E33/$K$3)*(SIN(((PI()/180)*E32)-((PI()/180)*F32)))))-F33-AM63),0))>=360,ROUND(((180/PI())*(((PI()/180)*F32)+SIN((E33/$K$3)*(SIN(((PI()/180)*E32)-((PI()/180)*F32))))))-F33-AM63,0)-360,IF((ROUND(((180/PI())*(((PI()/180)*F32)+SIN((E33/$K$3)*(SIN(((PI()/180)*E32)-((PI()/180)*F32)))))-F33-AM63),0))<0,ROUND(((180/PI())*(((PI()/180)*F32)+SIN((E33/$K$3)*(SIN(((PI()/180)*E32)-((PI()/180)*F32))))))-F33-AM63,0)+360,ROUND(((180/PI())*(((PI()/180)*F32)+SIN((E33/$K$3)*(SIN(((PI()/180)*E32)-((PI()/180)*F32)))))-F33-AM63),0)))) ->  | I32: =IF(OR(B31="",B31=B7),"",0) ->  | J32: =IF(OR(F32<0,F32>359,F32=""),"",ROUND($K$3*SQRT((1-((($E33/$K$3)*(SIN(((PI()/180)*$E32)-((PI()/180)*F32))))^2)))-($E33*COS(((PI()/180)*$E32)-((PI()/180)*F32))),0)) ->  | K32: =IF(OR(I32=0,I32="",F32=""),"",ROUND(((I32/J32)*60),1)) ->  | L32: =IF(OR(K30="",L30=""),"",TIME(HOUR(L30),MINUTE(L30)+ROUND(K30,0),SECOND(L30))) ->  | AF32: =AI33*SIN((ABS((AF30*10)-AG33)*PI()/180)) ->  | AG32: CW | AH32: =AI33*SIN((ABS((AH30*10)-AG33)*PI()/180)) ->  | AI32: CW | AJ32: =IF(ABS(AF32)<15,IF(ABS(AH32)<15,"OK","DANGER")) -> 
E33: =IF(OR(B31="",B31=B7),"",J$6) ->  | F33: =IF(OR(B31="",B31=B7,F31=""),"",F31) ->  | I33: =IF(OR(B31="",B31=B7),"",IF(OR(B31="",I31=""),"",I31)) ->  | K33: =IF(K32="","","TOT: "&K20+K22+K24+K26+K28+K30+K32) ->  | AF33: W | AG33: =IF(OR(B7="",B7=0),"",VLOOKUP(B7,A20:E36,5,FALSE)) ->  | AH33: V | AI33: =IF(OR(B7="",B7=0),"",VLOOKUP(B7,B20:E37,4,FALSE)) -> 
B34: =IF(OR(B33="",B33=B7),"",B33) ->  | E34: =IF(OR(B33="",B33=B7),"",I$6) ->  | G34: =IF(OR(F34<0,F34>359,F34="",F35=""),"",IF((ROUND(((180/PI())*(((PI()/180)*F34)+SIN((E35/$K$3)*(SIN(((PI()/180)*E34)-((PI()/180)*F34)))))-F35),0))>=360,ROUND(((180/PI())*(((PI()/180)*F34)+SIN((E35/$K$3)*(SIN(((PI()/180)*E34)-((PI()/180)*F34))))))-F35,0)-360,IF((ROUND(((180/PI())*(((PI()/180)*F34)+SIN((E35/$K$3)*(SIN(((PI()/180)*E34)-((PI()/180)*F34)))))-F35),0))<0,ROUND(((180/PI())*(((PI()/180)*F34)+SIN((E35/$K$3)*(SIN(((PI()/180)*E34)-((PI()/180)*F34))))))-F35,0)+360,ROUND(((180/PI())*(((PI()/180)*F34)+SIN((E35/$K$3)*(SIN(((PI()/180)*E34)-((PI()/180)*F34)))))-F35),0)))) ->  | H34: =IF(OR(F34<0,F34>359,F34="",F35=""),"",IF((ROUND(((180/PI())*(((PI()/180)*F34)+SIN((E35/$K$3)*(SIN(((PI()/180)*E34)-((PI()/180)*F34)))))-F35-AM64),0))>=360,ROUND(((180/PI())*(((PI()/180)*F34)+SIN((E35/$K$3)*(SIN(((PI()/180)*E34)-((PI()/180)*F34))))))-F35-AM64,0)-360,IF((ROUND(((180/PI())*(((PI()/180)*F34)+SIN((E35/$K$3)*(SIN(((PI()/180)*E34)-((PI()/180)*F34)))))-F35-AM64),0))<0,ROUND(((180/PI())*(((PI()/180)*F34)+SIN((E35/$K$3)*(SIN(((PI()/180)*E34)-((PI()/180)*F34))))))-F35-AM64,0)+360,ROUND(((180/PI())*(((PI()/180)*F34)+SIN((E35/$K$3)*(SIN(((PI()/180)*E34)-((PI()/180)*F34)))))-F35-AM64),0)))) ->  | I34: =IF(OR(B33="",B33=B7),"",0) ->  | J34: =IF(OR(F34<0,F34>359,F34=""),"",ROUND($K$3*SQRT((1-((($E35/$K$3)*(SIN(((PI()/180)*$E34)-((PI()/180)*F34))))^2)))-($E35*COS(((PI()/180)*$E34)-((PI()/180)*F34))),0)) ->  | K34: =IF(OR(I34=0,I34="",F34=""),"",ROUND(((I34/J34)*60),1)) ->  | L34: =IF(OR(K32="",L32=""),"",TIME(HOUR(L32),MINUTE(L32)+ROUND(K32,0),SECOND(L32))) ->  | AF34: PREFERRED QFU | AH34: =IF(AJ32="OK",AJ31,"DANGER") -> 
E35: =IF(OR(B33="",B33=B7),"",J$6) ->  | F35: =IF(OR(B33="",B33=B7,F33=""),"",F33) ->  | I35: =IF(OR(B33="",B33=B7),"",IF(OR(B33="",I33=""),"",I33)) ->  | K35: =IF(K34="","","TOT: "&K20+K22+K24+K26+K28+K30+K32+K34) -> 
B36: =IF(OR(B35="",B35=B7),"",B35) ->  | E36: =IF(OR(B35="",B35=B7),"",I$6) ->  | G36: =IF(OR(F36<0,F36>359,F36="",F37=""),"",IF((ROUND(((180/PI())*(((PI()/180)*F36)+SIN((E37/$K$3)*(SIN(((PI()/180)*E36)-((PI()/180)*F36)))))-F37),0))>=360,ROUND(((180/PI())*(((PI()/180)*F36)+SIN((E37/$K$3)*(SIN(((PI()/180)*E36)-((PI()/180)*F36))))))-F37,0)-360,IF((ROUND(((180/PI())*(((PI()/180)*F36)+SIN((E37/$K$3)*(SIN(((PI()/180)*E36)-((PI()/180)*F36)))))-F37),0))<0,ROUND(((180/PI())*(((PI()/180)*F36)+SIN((E37/$K$3)*(SIN(((PI()/180)*E36)-((PI()/180)*F36))))))-F37,0)+360,ROUND(((180/PI())*(((PI()/180)*F36)+SIN((E37/$K$3)*(SIN(((PI()/180)*E36)-((PI()/180)*F36)))))-F37),0)))) ->  | H36: =IF(OR(F36<0,F36>359,F36="",F37=""),"",IF((ROUND(((180/PI())*(((PI()/180)*F36)+SIN((E37/$K$3)*(SIN(((PI()/180)*E36)-((PI()/180)*F36)))))-F37-AM65),0))>=360,ROUND(((180/PI())*(((PI()/180)*F36)+SIN((E37/$K$3)*(SIN(((PI()/180)*E36)-((PI()/180)*F36))))))-F37-AM65,0)-360,IF((ROUND(((180/PI())*(((PI()/180)*F36)+SIN((E37/$K$3)*(SIN(((PI()/180)*E36)-((PI()/180)*F36)))))-F37-AM65),0))<0,ROUND(((180/PI())*(((PI()/180)*F36)+SIN((E37/$K$3)*(SIN(((PI()/180)*E36)-((PI()/180)*F36))))))-F37-AM65,0)+360,ROUND(((180/PI())*(((PI()/180)*F36)+SIN((E37/$K$3)*(SIN(((PI()/180)*E36)-((PI()/180)*F36)))))-F37-AM65),0)))) ->  | I36: =IF(OR(B35="",B35=B7),"",0) ->  | J36: =IF(OR(F36<0,F36>359,F36=""),"",ROUND($K$3*SQRT((1-((($E37/$K$3)*(SIN(((PI()/180)*$E36)-((PI()/180)*F36))))^2)))-($E37*COS(((PI()/180)*$E36)-((PI()/180)*F36))),0)) ->  | K36: =IF(OR(I36=0,I36="",F36=""),"",ROUND(((I36/J36)*60),1)) ->  | L36: =IF(OR(K34="",L34=""),"",TIME(HOUR(L34),MINUTE(L34)+ROUND(K34,0),SECOND(L34))) -> 
E37: =IF(OR(B35="",B35=B7),"",J$6) ->  | F37: =IF(OR(B35="",B35=B7,F35=""),"",F35) ->  | I37: =IF(OR(B35="",B35=B7),"",IF(OR(B35="",I35=""),"",I35)) ->  | K37: =IF(K36="","","TOT: "&K20+K22+K24+K26+K28+K30+K32+K34+K36) -> 
C38: Fuel trip | E38: =IF(OR(F3="",F3=1),"SELECT DAY OR NIGHT in F3",IF(F3=2,"DAY: +30 min spare",IF(F3=3,"NIGHT: + 45 min spare","UNKOWN ERROR"))) -> SELECT DAY OR NIGHT in F3 | G38: Max drift correction | J38: TOTAL | K38: Avg GS | L38: TOTAL TIME | AU38: =IF(ISERROR(VLOOKUP(AT38,$AF$38:$AR$46,3,FALSE)),"",VLOOKUP(AT38,$AF$38:$AR$46,3,FALSE)) ->  | AV38: =IF(ISERROR(VLOOKUP(AT38,$AF$38:$AR$46,2,FALSE)),"",VLOOKUP(AT38,$AF$38:$AR$46,2,FALSE)) ->  | AW38: =IF(ISERROR(VLOOKUP(AT38,$AF$38:$AR$46,4,FALSE)),"",VLOOKUP(AT38,$AF$38:$AR$46,4,FALSE)) ->  | AX38: =IF(ISERROR(VLOOKUP(AT38,$AF$38:$AR$46,5,FALSE)),"",VLOOKUP(AT38,$AF$38:$AR$46,5,FALSE)) ->  | AY38: =IF(ISERROR(VLOOKUP(AT38,$AF$38:$AR$46,6,FALSE)),"",VLOOKUP(AT38,$AF$38:$AR$46,6,FALSE)) ->  | AZ38: =IF(AY38="","",IF(AY38>180,AY38-180,AY38+180)) ->  | BA38: =IF(ISERROR(VLOOKUP(AT38,$AF$38:$AR$46,7,FALSE)),"",VLOOKUP(AT38,$AF$38:$AR$46,7,FALSE)) ->  | BB38: =IF(ISERROR(VLOOKUP(AT38,$AF$38:$AR$46,8,FALSE)),"",VLOOKUP(AT38,$AF$38:$AR$46,8,FALSE)) ->  | BC38: =IF(ISERROR(VLOOKUP(AT38,$AF$38:$AR$46,9,FALSE)),"",VLOOKUP(AT38,$AF$38:$AR$46,9,FALSE)) ->  | BD38: =IF(ISERROR(VLOOKUP(AT38,$AF$38:$AR$46,10,FALSE)),"",VLOOKUP(AT38,$AF$38:$AR$46,10,FALSE)) ->  | BE38: =IF(ISERROR(VLOOKUP(AT38,$AF$38:$AR$46,11,FALSE)),"",VLOOKUP(AT38,$AF$38:$AR$46,11,FALSE)) ->  | BF38: =IF(ISERROR(VLOOKUP(AT38,$AF$38:$AR$46,12,FALSE)),"",VLOOKUP(AT38,$AF$38:$AR$46,12,FALSE)) ->  | BG38: =IF(ISERROR(VLOOKUP(AT38,$AG$38:$AS$46,13,FALSE)),"",VLOOKUP(AT38,$AG$38:$AS$46,13,FALSE)) -> 
C39: =IF('W&B FORM'!M16="NOT ENOUGH FUEL TO COMPLETE THE TRIP","ADD FUEL",($M$3/60*$L$39)+('W&B FORM'!H14)) -> 3.0283296 | D39: =IF(C39="ADD FUEL","ADD FUEL",C39/3.785412) -> 0.8 | E39: =IF(F3=2,IF(M2="","SELECT PLANE",IF(OR(C39="ADD FUEL",C39>M2,(C39+(M3/60*30)>M2)),"ADD "&ROUNDUP(C39+(M3/60*30)-M2,0)&" l FUEL",(C39+(M3/60*30)))),IF(F3=3,IF(M2="","SELECT PLANE",IF(OR(C39="ADD FUEL",C39>M2,(C39+(M3/60*45)>M2)),"ADD "&ROUNDUP(C39+(M3/60*45)-M2,0)&" l FUEL",(C39+(M3/60*45)))),IF(F3=1,"SELECT DAY OR NIGHT in F3"))) -> SELECT DAY OR NIGHT in F3 | G39: =MAX(E21,E23,E25,E27,E29,E31,E33,E35,E37)*60/K3 -> 0 | J39: =SUM(I20,I22,I24,I26,I28,I30,I32,I34,I36) -> 0 | K39: =IF(ISERROR((J39/L39)*60),"",ROUND((J39/L39)*60,0)) ->  | L39: =ROUND(SUM(K20:K37),0) -> 0 | AU39: =IF(ISERROR(VLOOKUP(AT39,$AF$38:$AR$46,3,FALSE)),"",VLOOKUP(AT39,$AF$38:$AR$46,3,FALSE)) ->  | AV39: =IF(ISERROR(VLOOKUP(AT39,$AF$38:$AR$46,2,FALSE)),"",VLOOKUP(AT39,$AF$38:$AR$46,2,FALSE)) ->  | AW39: =IF(ISERROR(VLOOKUP(AT39,$AF$38:$AR$46,4,FALSE)),"",VLOOKUP(AT39,$AF$38:$AR$46,4,FALSE)) ->  | AX39: =IF(ISERROR(VLOOKUP(AT39,$AF$38:$AR$46,5,FALSE)),"",VLOOKUP(AT39,$AF$38:$AR$46,5,FALSE)) ->  | AY39: =IF(ISERROR(VLOOKUP(AT39,$AF$38:$AR$46,6,FALSE)),"",VLOOKUP(AT39,$AF$38:$AR$46,6,FALSE)) -> 
C40: Remaining | E40: Autonomy | G40: PNR (TIME) | J40: PNR (DIST) | K40: PET (DIST) | L40: PET (TIME) | AE40: Selected plane | AG40: =E2 -> 1 | AH40: =VLOOKUP(AG40,AE13:AF17,2,FALSE) -> SELECT | AJ40: max fuel | AK40: =VLOOKUP(AH40,AG41:AH44,2,FALSE) -> 
C41: =IF(ISERROR((+M2)-C39),"",IF((+M2)-C39<0,"ADD FUEL",(+M2)-C39)) ->  | D41: =IF(C41="","",IF(C41="ADD FUEL","ADD FUEL",C41/3.785412)) ->  | E41: =IF(ISERROR(ROUND(((M2)/(M3)*60)-('W&B FORM'!H14),0)),"",IF(TRUNC(ROUND(((M2)/(M3)*60)-('W&B FORM'!H14),0)/60)<10,"0"&TRUNC(ROUND(((M2)/(M3)*60)-('W&B FORM'!H14),0)/60)&":",TRUNC(ROUND(((M2)/(M3)*60)-('W&B FORM'!H14),0)/60)&":")&IF(MOD(ROUND(((M2)/(M3)*60)-('W&B FORM'!H14),0),60)<10,"0"&MOD(ROUND(((M2)/(M3)*60)-('W&B FORM'!H14),0),60),MOD(ROUND(((M2)/(M3)*60)-('W&B FORM'!H14),0),60))) ->  | G41: =IF(ISERROR(H42*AV68/(K39+AV68)),"",H42*AV68/(K39+AV68)) ->  | J41: =IF(ISERROR((G41/60)*K39),"",(G41/60)*K39) ->  | K41: =IF(ISERROR((J39*AV68)/(K39+AV68)),"",(J39*AV68)/(K39+AV68)) ->  | L41: =IF(ISERROR((K41/K39)*60),"",(K41/K39)*60) ->  | AG41: OO-VCL | AH41: ='OO-VCL'!E4 -> 141.95295 | AI41: l | AZ41: =IF(AY41="","",IF(AY41>180,AY41-180,AY41+180)) -> 
H42: =IF(ISERROR(ROUND(((M2)/(M3)*60)-('W&B FORM'!H14),0)),"",ROUND(((M2)/(M3)*60)-('W&B FORM'!H14),0)) ->  | AG42: OO-BET | AH42: ='OO-BET'!E4 -> 141.95295 | AI42: l
B43: FREQUENCIES | F43: EN ROUTE & ARRIVAL INFORMATION | AG43: OO-VCR | AH43: ='OO-VCR'!E4 -> 92.742594 | AI43: l
B44: BUB | C44: 114.6 | F44: REPORTING POINTS | I44: ALT | J44: NOTES | AG44: OO-VCM | AH44: ='OO-VCM'!E4 -> 92.742594 | AI44: l
B45: AFI | C45: 114.9 | F45: =IF(B7="EBGB","LONDI","") ->  | I45: =IF(B7="EBGB","900 ft","") ->  | J45: =IF(F45="LONDI","BUB 114,60 TO 121°","") -> 
B46: BUN | C46: 110.6 | F46: =IF(F45="LONDI","EBGB-FIELD","") ->  | I46: =IF(F45="LONDI","900 ft","") ->  | J46: =IF(F45="LONDI","FOLLOW TR 126° MAG","") -> 
B47: NIK | C47: 117.4
B48: Brussels Info (civ) | C48: 126.9 | J48: Preflight checks:
B49: Belgo Info (mil) | C49: 129.325 | K49:  AIP-info/charts
B50: Dutch mil info | C50: 132.35 | F50: CIRCUIT ALT (MSL) | K50:  NOTAMS | AE50: Compass deviation table and calculation of d for specific Rm=Rw-V
B51: Lille info | C51: 126.475 | F51: =IF(B7="","",IF(B7="EBGB","800 ft",SUM(F7,1000))) ->  | K51:  METEO | AE51: FOR | AF51: 0 | AG51: =AF51+30 -> 30 | AH51: =AG51+30 -> 60 | AI51: 90 | AJ51: 120 | AK51: 150 | AL51: 180 | AM51: 210 | AN51: 240 | AO51: 270 | AP51: =AO51+30 -> 300 | AQ51: 330 | AR51: 360
B52: Amsterdam Info | C52: 124.3 | F52: Filing & closing flight plans | J52: =IF(AND(E3=2,LEFT(B6,2)<>LEFT(B7,2),B7<>""),"CLOSE YOUR FLIGHTPLAN AND REGISTER YOUR NAVIGATION FLIGHT ON ARRIVAL IN "&B7,IF(E3=2,"REGISTER YOUR NAVIGATION FLIGHT ON ARRIVAL IN "&B7,"")) ->  | AE52: STEER | AF52: =IF($E$2="","",IF($E$2=3,HLOOKUP(AF51,'OO-BET'!$C$66:$O$67,2,FALSE),IF($E$2=2,HLOOKUP(AF51,'OO-VCL'!$C$66:$O$67,2,FALSE),IF($E$2=5,HLOOKUP(AF51,'OO-VCM'!$C$66:$O$67,2,FALSE),IF($E$2=4,HLOOKUP(AF51,'OO-VCR'!$C$66:$O$67,2,FALSE)))))) -> FALSE | AG52: =IF($E$2="","",IF($E$2=3,HLOOKUP(AG51,'OO-BET'!$C$66:$O$67,2,FALSE),IF($E$2=2,HLOOKUP(AG51,'OO-VCL'!$C$66:$O$67,2,FALSE),IF($E$2=5,HLOOKUP(AG51,'OO-VCM'!$C$66:$O$67,2,FALSE),IF($E$2=4,HLOOKUP(AG51,'OO-VCR'!$C$66:$O$67,2,FALSE)))))) -> FALSE | AH52: =IF($E$2="","",IF($E$2=3,HLOOKUP(AH51,'OO-BET'!$C$66:$O$67,2,FALSE),IF($E$2=2,HLOOKUP(AH51,'OO-VCL'!$C$66:$O$67,2,FALSE),IF($E$2=5,HLOOKUP(AH51,'OO-VCM'!$C$66:$O$67,2,FALSE),IF($E$2=4,HLOOKUP(AH51,'OO-VCR'!$C$66:$O$67,2,FALSE)))))) -> FALSE | AI52: =IF($E$2="","",IF($E$2=3,HLOOKUP(AI51,'OO-BET'!$C$66:$O$67,2,FALSE),IF($E$2=2,HLOOKUP(AI51,'OO-VCL'!$C$66:$O$67,2,FALSE),IF($E$2=5,HLOOKUP(AI51,'OO-VCM'!$C$66:$O$67,2,FALSE),IF($E$2=4,HLOOKUP(AI51,'OO-VCR'!$C$66:$O$67,2,FALSE)))))) -> FALSE | AJ52: =IF($E$2="","",IF($E$2=3,HLOOKUP(AJ51,'OO-BET'!$C$66:$O$67,2,FALSE),IF($E$2=2,HLOOKUP(AJ51,'OO-VCL'!$C$66:$O$67,2,FALSE),IF($E$2=5,HLOOKUP(AJ51,'OO-VCM'!$C$66:$O$67,2,FALSE),IF($E$2=4,HLOOKUP(AJ51,'OO-VCR'!$C$66:$O$67,2,FALSE)))))) -> FALSE | AK52: =IF($E$2="","",IF($E$2=3,HLOOKUP(AK51,'OO-BET'!$C$66:$O$67,2,FALSE),IF($E$2=2,HLOOKUP(AK51,'OO-VCL'!$C$66:$O$67,2,FALSE),IF($E$2=5,HLOOKUP(AK51,'OO-VCM'!$C$66:$O$67,2,FALSE),IF($E$2=4,HLOOKUP(AK51,'OO-VCR'!$C$66:$O$67,2,FALSE)))))) -> FALSE | AL52: =IF($E$2="","",IF($E$2=3,HLOOKUP(AL51,'OO-BET'!$C$66:$O$67,2,FALSE),IF($E$2=2,HLOOKUP(AL51,'OO-VCL'!$C$66:$O$67,2,FALSE),IF($E$2=5,HLOOKUP(AL51,'OO-VCM'!$C$66:$O$67,2,FALSE),IF($E$2=4,HLOOKUP(AL51,'OO-VCR'!$C$66:$O$67,2,FALSE)))))) -> FALSE | AM52: =IF($E$2="","",IF($E$2=3,HLOOKUP(AM51,'OO-BET'!$C$66:$O$67,2,FALSE),IF($E$2=2,HLOOKUP(AM51,'OO-VCL'!$C$66:$O$67,2,FALSE),IF($E$2=5,HLOOKUP(AM51,'OO-VCM'!$C$66:$O$67,2,FALSE),IF($E$2=4,HLOOKUP(AM51,'OO-VCR'!$C$66:$O$67,2,FALSE)))))) -> FALSE | AN52: =IF($E$2="","",IF($E$2=3,HLOOKUP(AN51,'OO-BET'!$C$66:$O$67,2,FALSE),IF($E$2=2,HLOOKUP(AN51,'OO-VCL'!$C$66:$O$67,2,FALSE),IF($E$2=5,HLOOKUP(AN51,'OO-VCM'!$C$66:$O$67,2,FALSE),IF($E$2=4,HLOOKUP(AN51,'OO-VCR'!$C$66:$O$67,2,FALSE)))))) -> FALSE | AO52: =IF($E$2="","",IF($E$2=3,HLOOKUP(AO51,'OO-BET'!$C$66:$O$67,2,FALSE),IF($E$2=2,HLOOKUP(AO51,'OO-VCL'!$C$66:$O$67,2,FALSE),IF($E$2=5,HLOOKUP(AO51,'OO-VCM'!$C$66:$O$67,2,FALSE),IF($E$2=4,HLOOKUP(AO51,'OO-VCR'!$C$66:$O$67,2,FALSE)))))) -> FALSE | AP52: =IF($E$2="","",IF($E$2=3,HLOOKUP(AP51,'OO-BET'!$C$66:$O$67,2,FALSE),IF($E$2=2,HLOOKUP(AP51,'OO-VCL'!$C$66:$O$67,2,FALSE),IF($E$2=5,HLOOKUP(AP51,'OO-VCM'!$C$66:$O$67,2,FALSE),IF($E$2=4,HLOOKUP(AP51,'OO-VCR'!$C$66:$O$67,2,FALSE)))))) -> FALSE | AQ52: =IF($E$2="","",IF($E$2=3,HLOOKUP(AQ51,'OO-BET'!$C$66:$O$67,2,FALSE),IF($E$2=2,HLOOKUP(AQ51,'OO-VCL'!$C$66:$O$67,2,FALSE),IF($E$2=5,HLOOKUP(AQ51,'OO-VCM'!$C$66:$O$67,2,FALSE),IF($E$2=4,HLOOKUP(AQ51,'OO-VCR'!$C$66:$O$67,2,FALSE)))))) -> FALSE | AR52: =IF($E$2="","",IF($E$2=3,HLOOKUP(AR51,'OO-BET'!$C$66:$O$67,2,FALSE),IF($E$2=2,HLOOKUP(AR51,'OO-VCL'!$C$66:$O$67,2,FALSE),IF($E$2=5,HLOOKUP(AR51,'OO-VCM'!$C$66:$O$67,2,FALSE),IF($E$2=4,HLOOKUP(AR51,'OO-VCR'!$C$66:$O$67,2,FALSE)))))) -> FALSE
B53: Brussels VOLMET | C53: 127.805 | J53: Belgium | K53: + 32 2 206 25 40
B54: Emergency | C54: 121.5 | J54: France | K54: 0810 437 837 | V54: =Introduction!A5&" | "&Introduction!E5 -> remarks? tony.opsomer@gmail.com | version 2023-07-15
AF55: journey | AN55: journey Back
B56: This document is provided for secondary flightplanning and navigation only. It is the user/pilot's sole responsibility to verify the correctness of all information provided by this sheet. Thanks to Luc Verhoeven and Michaël Debusscher for their valuable contribute to this flight log | P56: =B56 -> This document is provided for secondary flightplanning and navigation only. It is the user/pilot's sole responsibility to verify the correctness of all information provided by this sheet. Thanks to Luc Verhoeven and Michaël Debusscher for their valuable contribute to this flight log | AF56: Rw | AG56: V | AH56: Rm=Rw-V | AI56: LOOK UP BETWEEN (FOR) | AK56: LOOK UP BETWEEN (STEER) | AM56: d | AN56: Rw | AO56: V | AP56: Rm=Rw-V | AQ56: LOOK UP BETWEEN (FOR) | AS56: LOOK UP BETWEEN (STEER) | AU56: d | AV56: GS back | AW56: EET back
AF57: =F20 -> 0 | AG57: =F21 -> 0 | AH57: =AF57-AG57 -> 0 | AI57: =TRUNC(AF57/30)*30 -> 0 | AJ57: =AI57+30 -> 30 | AK57: =HLOOKUP(AI57,$AF$51:$AR$52,2,FALSE) -> FALSE | AL57: FALSE | AM57: =AH57-(AK57+((AH57-AI57)/(AJ57-AI57)*(AL57-AK57))) -> 0 | AN57: =IF(AF57+180>=360,AF57-180,AF57+180) -> 180 | AO57: =F21 -> 0 | AP57: =AN57-AO57 -> 180 | AQ57: =TRUNC(AP57/30,0)*30 -> 180 | AR57: =AQ57+30 -> 210 | AS57: =HLOOKUP(AQ57,$AE$51:$AQ$52,2,FALSE) -> FALSE | AT57: FALSE | AU57: =AP57-(AS57+((AP57-AQ57)/(AR57-AQ57)*(AT57-AS57))) -> 180 | AV57: =ROUND($K$3*SQRT((1-((($E21/$K$3)*(SIN(((PI()/180)*$E20)-((PI()/180)*AN57))))^2)))-($E21*COS(((PI()/180)*$E20)-((PI()/180)*AN57))),0) ->  | AW57: =IF(ISERROR(ROUND(((I20/AV57)*60),1)),"",ROUND(((I20/AV57)*60),1)) -> 
AF58: =F22 -> 0 | AG58: =F23 ->  | AH58: =AF58-AG58 ->  | AI58: =TRUNC(AF58/30)*30 -> 0 | AJ58: =AI58+30 -> 30 | AK58: FALSE | AL58: FALSE | AN58: =IF(AF58+180>=360,AF58-180,AF58+180) -> 180 | AO58: =F23 ->  | AP58: =AN58-AO58 ->  | AQ58: =TRUNC(AP58/30,0)*30 ->  | AR58: =AQ58+30 ->  | AU58: =AP58-(AS58+((AP58-AQ58)/(AR58-AQ58)*(AT58-AS58))) ->  | AV58: =ROUND($K$3*SQRT((1-((($E23/$K$3)*(SIN(((PI()/180)*$E22)-((PI()/180)*AN58))))^2)))-($E23*COS(((PI()/180)*$E22)-((PI()/180)*AN58))),0) ->  | AW58: =IF(ISERROR(ROUND(((I22/AV58)*60),1)),"",ROUND(((I22/AV58)*60),1)) -> 
AF59: =F24 -> 0 | AG59: =F25 ->  | AI59: 0 | AJ59: 30 | AK59: FALSE | AL59: FALSE | AN59: 180 | AO59: =F25 ->  | AQ59: =TRUNC(AP59/30,0)*30 ->  | AV59: =ROUND($K$3*SQRT((1-((($E25/$K$3)*(SIN(((PI()/180)*$E24)-((PI()/180)*AN59))))^2)))-($E25*COS(((PI()/180)*$E24)-((PI()/180)*AN59))),0) ->  | AW59: =IF(ISERROR(ROUND(((I24/AV59)*60),1)),"",ROUND(((I24/AV59)*60),1)) -> 
AF60: =F26 -> 0 | AG60: =F27 ->  | AI60: 0 | AJ60: 30 | AK60: FALSE | AL60: FALSE | AN60: 180 | AO60: =F27 ->  | AV60: =ROUND($K$3*SQRT((1-((($E27/$K$3)*(SIN(((PI()/180)*$E26)-((PI()/180)*AN60))))^2)))-($E27*COS(((PI()/180)*$E26)-((PI()/180)*AN60))),0) ->  | AW60: =IF(ISERROR(ROUND(((I26/AV60)*60),1)),"",ROUND(((I26/AV60)*60),1)) -> 
AF61: =F28 -> 0 | AG61: =F29 ->  | AI61: 0 | AJ61: 30 | AK61: FALSE | AL61: FALSE | AN61: 180 | AO61: =F29 ->  | AV61: =ROUND($K$3*SQRT((1-((($E29/$K$3)*(SIN(((PI()/180)*$E28)-((PI()/180)*AN61))))^2)))-($E29*COS(((PI()/180)*$E28)-((PI()/180)*AN61))),0) ->  | AW61: =IF(ISERROR(ROUND(((I28/AV61)*60),1)),"",ROUND(((I28/AV61)*60),1)) -> 
AF62: =F30 -> 0 | AG62: =F31 ->  | AI62: 0 | AJ62: 30 | AK62: FALSE | AL62: FALSE | AN62: 180 | AO62: =F31 ->  | AV62: =ROUND($K$3*SQRT((1-((($E31/$K$3)*(SIN(((PI()/180)*$E30)-((PI()/180)*AN62))))^2)))-($E31*COS(((PI()/180)*$E30)-((PI()/180)*AN62))),0) ->  | AW62: =IF(ISERROR(ROUND(((I30/AV62)*60),1)),"",ROUND(((I30/AV62)*60),1)) -> 
AF63: =F32 -> 0 | AG63: =F33 ->  | AI63: 0 | AJ63: 30 | AK63: FALSE | AL63: FALSE | AN63: 180 | AO63: =F33 ->  | AV63: =ROUND($K$3*SQRT((1-((($E33/$K$3)*(SIN(((PI()/180)*$E31)-((PI()/180)*AN63))))^2)))-($E33*COS(((PI()/180)*$E31)-((PI()/180)*AN63))),0) ->  | AW63: =IF(ISERROR(ROUND(((I32/AV63)*60),1)),"",ROUND(((I32/AV63)*60),1)) -> 
AF64: =F34 -> 0 | AG64: =F35 ->  | AI64: 0 | AJ64: 30 | AK64: FALSE | AL64: FALSE | AN64: 180 | AO64: =F35 ->  | AV64: =ROUND($K$3*SQRT((1-((($E35/$K$3)*(SIN(((PI()/180)*$E34)-((PI()/180)*AN64))))^2)))-($E35*COS(((PI()/180)*$E34)-((PI()/180)*AN64))),0) ->  | AW64: =IF(ISERROR(ROUND(((I34/AV64)*60),1)),"",ROUND(((I34/AV64)*60),1)) -> 
AF65: =F36 -> 0 | AG65: =F37 ->  | AI65: 0 | AJ65: 30 | AK65: FALSE | AL65: FALSE | AN65: 180 | AO65: =F37 ->  | AV65: =ROUND($K$3*SQRT((1-((($E37/$K$3)*(SIN(((PI()/180)*$E36)-((PI()/180)*AN65))))^2)))-($E37*COS(((PI()/180)*$E36)-((PI()/180)*AN65))),0) ->  | AW65: =IF(ISERROR(ROUND(((I36/AV65)*60),1)),"",ROUND(((I36/AV65)*60),1)) -> 
AV67: mean GS back | AW67: TOTAL EET back
AV68: =(J39/AW68)*60 ->  | AW68: =SUM(AW57:AW65) -> 0

Sheet Performance FORM
C1: =Introduction!A5 -> remarks? tony.opsomer@gmail.com | I1: =Introduction!E5 -> version 2023-07-15
C2: ="Performance form C152"&IF(OR(E6=0,E38=0),""," (from "&E6&" to "&E38&")") -> Performance form C152 | I2: BE.DTO.113 | M2: Calculations
G3: Form validity checker | O3: RPM dropdown list items
G4: Don't forget: always do a manual check on your data!! | O4: 1 | P4: SELECT VALUE
B5: TAKE-OFF | C5: Take-off weight [kg] | E5: =IF(ISERROR(R84),"SELECT PLANE",R84) -> SELECT PLANE | O5: 2 | P5: 2550
C6: ICAO airport name | E6: ='Flight log FORM'!B6 -> 0 | O6: 3 | P6: 2500
C7: MSL Altitude [ft] | E7: ='Flight log FORM'!F6 ->  | G7: =IF(E7="","COMPLETE THE FORM","AIRPORT ALTITUDE OK") -> COMPLETE THE FORM | O7: 4 | P7: 2450
C8: QNH [hPa or mbar] | E8: ='Flight log FORM'!G6 -> 0 | G8: =IF(E8="","COMPLETE THE FORM",IF(OR(E8<960,E8>1100),"INVALID QNH","QNH OK")) -> INVALID QNH | O8: 5 | P8: 2400
C9: Pressure altitude [ft] | E9: =IF(OR(E7="",E8=""),"COMPLETE THE FORM",IF(E8>1013,(E7-(E8-1013)*30),(E7+(1013-E8)*30))) -> COMPLETE THE FORM | G9: =IF(OR(E9="",E9="COMPLETE THE FORM"),"COMPLETE THE FORM",IF(E9>3000,"LEANING OF MIXTURE IS RECOMMENDED","LEANING OF MIXTURE NOT RECOMMENDED")) -> COMPLETE THE FORM | O9: 6 | P9: 2300
C10: OAT Temperature [°C] | E10: ='Flight log FORM'!J2 -> 0 | G10: =IF(E10="","COMPLETE THE FORM",IF(E10>=40,"TEMPERATURE TOO HIGH","TEMPERATURE OK")) -> TEMPERATURE OK | M10: Runway type dropdown list items | O10: 7 | P10: 2200
C11: Density altitude [ft] | E11: =IF(OR(E8="",E7="",E10=""),"COMPLETE THE FORM",E9+120*(E10-(15-(1.98/1000*E9)))) -> COMPLETE THE FORM | M11: DEFINE TYPE | O11: 8 | P11: 2100
C12: Wind | M12: PAVED | O12: 9 | P12: 2000
D13: Direction [°] | E13: ='Flight log FORM'!E20 ->  | G13: =IF(E13="","COMPLETE THE FORM",IF(OR(E13<0,E13>359),"INVALID WIND DIRECTION","WIND DIRECTION OK")) -> COMPLETE THE FORM | I13: =IF(OR(E13="",E14="",E16=""),"COMPLETE THE FORM",IF(E14<0,"CHECK WIND VELOCITY",IF(ABS(O17)>=15,"CROSSWIND TOO STRONG",IF(R16="USE OTHER RUNWAY DIRECTION","TOO MUCH TAILWIND, USE OTHER RUNWAY DIRECTION",ROUND(ABS(O16),1)&"kts "&P16&" AND " & ROUND(ABS(O17),1)&"kts "&P17)))) -> COMPLETE THE FORM | M13: GRASS
D14: Velocity [kts] | E14: ='Flight log FORM'!E21 ->  | G14: =IF(E14="","COMPLETE THE FORM",IF(E14<0,"INVALID WIND VELOCITY","WIND VELOCITY OK")) -> COMPLETE THE FORM
C15: Runway | M15: Takeoff wind calculations | R15: change in takeoff distance
D16: Runway | E16: ='Flight log FORM'!L6 ->  | G16: =IF(E16="","COMPLETE THE FORM",IF(OR(E16<0,E16>35),"INVALID QFU","QFU OK")) -> COMPLETE THE FORM | M16: headwind component [kts] | O16: =E14*COS((ABS((E16*10)-E13)*PI()/180)) ->  | P16: =IF(O16>=0,"HEADWIND",IF(O16<0,"TAILWIND","")) ->  | R16: =IF(O16>=0,O16/9*-0.1,IF(AND(O16<0,O16>=-10),ABS(O16/2*0.1),"USE OTHER RUNWAY DIRECTION")) -> 
D17: type | E17: 1 | G17: =IF(E17="","",IF(E17=1,"DEFINE TYPE",IF(E17=2,"PAVED",IF(E17=3,"GRASS")))) -> DEFINE TYPE | M17: crosswind component [kts] | O17: =E14*SIN((ABS((E16*10)-E13)*PI()/180)) ->  | P17: CROSSWIND
D18: TORA [m] | E18: ='Flight log FORM'!M6 ->  | G18: =IF(E18="","COMPLETE THE FORM",IF(E18<0,"INVALID RUNWAY LENGTH VALUE","RUNWAY LENGTH VALUE OK")) -> COMPLETE THE FORM
C19: Safety margin for takeoff distance | E19: 0.5
C20: Short field take-off (flaps 10°, full throttle prior to brake release) | M20: Short field takeoff calculations
D21: lift off IAS speed [kts] | E21: 50 | M21: look between PA [ft] | P21: needed value [ft]
D22: ground roll [m] | E22: =IF(E9="COMPLETE THE FORM","COMPLETE THE FORM",IF(R16="USE OTHER RUNWAY DIRECTION","CHANGE RUNWAY",IF(E9>=8000,"P.A. TOO HIGH",IF(G17="PAVED",((1+R16)*P31*(1+E19))*0.3048,IF(G17="GRASS",(((1+R16)*P31+(0.15*P31))*(1+E19))*0.3048,"COMPLETE THE FORM"))))) -> COMPLETE THE FORM | M22: =IF(E9<=0,0,LEFT(E9/1000,1)*1000) ->  | N22: =IF(E9<=0,0,LEFT(E9/1000+1,1)*1000) ->  | P22: =E9 -> COMPLETE THE FORM
D23: total to clear 50ft OBS [m] | E23: =IF(E9="COMPLETE THE FORM","COMPLETE THE FORM",IF(R16="USE OTHER RUNWAY DIRECTION","CHANGE RUNWAY",IF(E9>=8000,"P.A. TOO HIGH",IF(G17="PAVED",((1+R16)*Q31*(1+E19))*0.3048,IF(G17="GRASS",(((1+R16)*Q31+(0.15*P31))*(1+E19))*0.3048,"COMPLETE THE FORM"))))) -> COMPLETE THE FORM | G23: =IF(E9="COMPLETE THE FORM","COMPLETE THE FORM",IF(E9>=8000,"PRESSURE ALTITUDE TOO HIGH",IF(G17="DEFINE TYPE","DEFINE TYPE OF RUNWAY",IF(E18="","COMPLETE THE FORM",IF(E23="CHANGE RUNWAY","TOO MUCH TAILWIND, USE OTHER RUNWAY DIRECTION",IF(E23>E18,"RUNWAY TOO SHORT",IF(E23<=E18,"RUNWAY LENGTH SUFFICIENT"))))))) -> COMPLETE THE FORM | M23: look between temperatures [°C] | P23: needed value [°C]
B24: CRUISE | C24: Cruising weight [kg] | E24: =E5 -> SELECT PLANE
C25: MSL Cruising altitude [ft] | G25: =IF(E25="","COMPLETE THE FORM",IF(E25<=0,"CRUISING ALTITUDE MUST GREATER THAN 0 FT","CRUISING ALTITUDE OK")) -> COMPLETE THE FORM | M25: =IF(E10<=0,0,LEFT(E10/10,1)*10) -> 0 | N25: =IF(E10<=0,0,LEFT(E10/10+1,1)*10) -> 0 | P25: =E10 -> 0
C26: QNH [hPa or mbar] | G26: =IF(E26="","COMPLETE THE FORM",IF(OR(E26<960,E26>1100),"INVALID QNH","QNH OK")) -> COMPLETE THE FORM | M26: Found & interpolated takeoff values (distances are in FEET)
C27: Pressure altitude [ft] | E27: =IF(OR(E25="",E26=""),"COMPLETE THE FORM",IF(E26>1013,(E25-(E26-1013)*30),(E25+(1013-E26)*30))) -> COMPLETE THE FORM | G27: =IF(OR(E27="",E27="COMPLETE THE FORM"),"COMPLETE THE FORM",IF(E27<0,"INVALID MSL CRUISING ALTITUDE",IF(E27>3000,"LEANING OF MIXTURE RECOMMENDED",IF(OR(E27>12000,E27<2000),"NO DATA FOUND",IF(AND(E27>0,E27<=3000),"LEANING OF MIXTURE NOT RECOMMENDED",))))) -> COMPLETE THE FORM | N27: =M25 -> 0 | P27: =P25 -> 0 | R27: =N25 -> 0
C28: OAT Temperature at cruising altitude [°C] | G28: =IF(OR(E28="",E25="",E26=""),"COMPLETE THE FORM",IF(AND(E28<=((15-(1.98/1000*E27))+20),E28>=((15-(1.98/1000*E27))-20)),"TEMPERATURE WITHIN DATA LIMITS","TEMPERATURE OUT OF DATA LIMITS")) -> COMPLETE THE FORM | N28: GRND ROLL | O28: TOTAL TO… | P28: GRND ROLL | Q28: TOTAL TO… | R28: GRND ROLL | S28: TOTAL TO…
C29: Desired RPM-setting | E29: 1 | G29: =IF(E29=1,"COMPLETE THE FORM",M58) -> COMPLETE THE FORM | M29: column index | N29: =2+(M25/10*2) -> 2 | O29: =3+(M25/10*2) -> 3 | R29: =2+(N25/10*2) -> 2 | S29: =3+(N25/10*2) -> 3
C30: Cruise performance | M30: =M22 ->  | N30: =VLOOKUP($M30,'C152 Performance specs'!$B$7:$L$15,'Performance FORM'!N$29,FALSE) ->  | O30: =VLOOKUP($M30,'C152 Performance specs'!$B$7:$L$15,'Performance FORM'!O$29,FALSE) ->  | R30: =VLOOKUP($M30,'C152 Performance specs'!$B$7:$L$15,'Performance FORM'!R$29,FALSE) ->  | S30: =VLOOKUP($M30,'C152 Performance specs'!$B$7:$L$15,'Performance FORM'!S$29,FALSE) -> 
D31: %BHP | E31: =IF(OR(E29=1,E28="",E26="",E25=""),"COMPLETE THE FORM",IF(G27="NO DATA FOUND","CHECK CRUISING ALT",IF(OR(M58="RPM VALUE NOT FOUND IN DATA",ISERROR(R72)),"CHECK RPM VALUE",IF(ABS(R61-O61)>20,"CHECK TEMPERATURE",R71/100)))) -> COMPLETE THE FORM | M31: =P22 -> COMPLETE THE FORM | N31: =IF(P22<=0,N30,N30+((N32-N30)*(($M$31-$M$30)/($M$32-$M$30)))) ->  | O31: =IF(P22<=0,O30,O30+((O32-O30)*(($M$31-$M$30)/($M$32-$M$30)))) ->  | P31: =IF(P25<=0,N31,N31+((R31-N31)*((($P$27-$N$27)/($R$27-$N$27))))) ->  | Q31: =IF(P25<=0,O31,O31+((S31-O31)*((($P$27-$N$27)/($R$27-$N$27))))) ->  | R31: =IF(P22<=0,R30,R30+((R32-R30)*(($M$31-$M$30)/($M$32-$M$30)))) ->  | S31: =IF(P22<=0,S30,S30+((S32-S30)*(($M$31-$M$30)/($M$32-$M$30)))) -> 
D32: KIAS [kts] | E32: =IF(OR(E29=1,E28="",E26="",E25=""),"COMPLETE THE FORM",IF(G27="NO DATA FOUND","CHECK CRUISING ALT",IF(OR(M58="RPM VALUE NOT FOUND IN DATA",ISERROR(R72)),"CHECK RPM VALUE",IF(ABS(R61-O61)>20,"CHECK TEMPERATURE",P81)))) -> COMPLETE THE FORM | M32: =N22 ->  | N32: =VLOOKUP($M32,'C152 Performance specs'!$B$7:$L$15,'Performance FORM'!N$29,FALSE) ->  | O32: =VLOOKUP($M32,'C152 Performance specs'!$B$7:$L$15,'Performance FORM'!O$29,FALSE) ->  | R32: =VLOOKUP($M32,'C152 Performance specs'!$B$7:$L$15,'Performance FORM'!R$29,FALSE) ->  | S32: =VLOOKUP($M32,'C152 Performance specs'!$B$7:$L$15,'Performance FORM'!S$29,FALSE) -> 
D33: KTAS [kts] | E33: =IF(OR(E29=1,E28="",E26="",E25=""),"COMPLETE THE FORM",IF(G27="NO DATA FOUND","CHECK CRUISING ALT",IF(OR(M58="RPM VALUE NOT FOUND IN DATA",ISERROR(R72)),"CHECK RPM VALUE",IF(ABS(R61-O61)>20,"CHECK TEMPERATURE",R72-2)))) -> COMPLETE THE FORM
D34: Fuel consumption [US Gal/hr] | E34: =IF(OR(E29=1,E28="",E26="",E25=""),"COMPLETE THE FORM",IF(G27="NO DATA FOUND","CHECK CRUISING ALT",IF(OR(M58="RPM VALUE NOT FOUND IN DATA",ISERROR(R72)),"CHECK RPM VALUE",IF(ABS(R61-O61)>20,"CHECK TEMPERATURE",R73)))) -> COMPLETE THE FORM
M35: Short field landing calculations
M36: look between PA [ft] | P36: needed value [ft]
B37: LANDING | C37: Landing weight [kg] | E37: =E5 -> SELECT PLANE
C38: ICAO airport name | E38: ='Flight log FORM'!B7 -> 0 | M38: =IF(E41<=0,0,LEFT(E41/1000,1)*1000) ->  | N38: =IF(E41<=0,0,LEFT(E41/1000+1,1)*1000) ->  | P38: =E41 -> COMPLETE THE FORM
C39: MSL Altitude [ft] | E39: ='Flight log FORM'!F7 ->  | G39: =IF(E39="","COMPLETE THE FORM","AIRPORT ALTITUDE OK") -> COMPLETE THE FORM | M39: look between temperatures [°C] | P39: needed value [°C]
C40: QNH [hPa or mbar] | E40: ='Flight log FORM'!G7 ->  | G40: =IF(E40="","COMPLETE THE FORM",IF(OR(E40<960,E40>1100),"INVALID QNH","QNH OK")) -> COMPLETE THE FORM | M40: =IF(E42<=0,0,LEFT(E42/10,1)*10) -> 0 | N40: =IF(E42<=0,0,LEFT(E42/10+1,1)*10) -> 0 | P40: =E42 -> 0
C41: Pressure altitude [ft] | E41: =IF(OR(E39="",E40=""),"COMPLETE THE FORM",IF(E40>1013,(E39-(E40-1013)*30),(E39+(1013-E40)*30))) -> COMPLETE THE FORM | G41: =IF(OR(E41="",E41="COMPLETE THE FORM"),"COMPLETE THE FORM",IF(E41>3000,"LEANING OF MIXTURE IS RECOMMENDED","LEANING OF MIXTURE NOT RECOMMENDED")) -> COMPLETE THE FORM | M41: Found & interpolated landing values (distances are in FEET)
C42: OAT Temperature [°C] | E42: ='Flight log FORM'!J2 -> 0 | G42: =IF(E42="","COMPLETE THE FORM",IF(E42>=40,"TEMPERATURE TOO HIGH","TEMPERATURE OK")) -> TEMPERATURE OK | N42: =M40 -> 0 | P42: =P40 -> 0 | R42: =N40 -> 0
C43: Density altitude [ft] | E43: =IF(OR(E40="",E39="",E42=""),"COMPLETE THE FORM",E41+120*(E42-(15-(1.98/1000*E41)))) -> COMPLETE THE FORM | N43: GRND ROLL | O43: TOTAL TO… | P43: GRND ROLL | Q43: TOTAL TO… | R43: GRND ROLL | S43: TOTAL TO…
C44: Wind | M44: column index | N44: =2+(M40/10*2) -> 2 | O44: =3+(M40/10*2) -> 3 | R44: =2+(N40/10*2) -> 2 | S44: =3+(N40/10*2) -> 3
D45: Direction [°] | E45: ='Flight log FORM'!I7 -> 0 | G45: =IF(E45="","COMPLETE THE FORM",IF(OR(E45<0,E45>359),"INVALID WIND DIRECTION","WIND DIRECTION OK")) -> WIND DIRECTION OK | I45: =IF(OR(E45="",E46="",E48=""),"COMPLETE THE FORM",IF(E46<0,"CHECK WIND VELOCITY",IF(ABS(O52)>=15,"CROSSWIND TOO STRONG",IF(R51="USE OTHER RUNWAY DIRECTION","TOO MUCH TAILWIND, USE OTHER RUNWAY DIRECTION",ROUND(ABS(O51),1)&"kts "&P51&" AND " & ROUND(ABS(O52),1)&"kts "&P52)))) -> COMPLETE THE FORM | M45: =M38 ->  | N45: =VLOOKUP($M45,'C152 Performance specs'!$B$20:$L$28,'Performance FORM'!N$44,FALSE) ->  | O45: =VLOOKUP($M45,'C152 Performance specs'!$B$20:$L$28,'Performance FORM'!O$44,FALSE) ->  | R45: =VLOOKUP($M45,'C152 Performance specs'!$B$20:$L$28,'Performance FORM'!R$44,FALSE) ->  | S45: =VLOOKUP($M45,'C152 Performance specs'!$B$20:$L$28,'Performance FORM'!S$44,FALSE) -> 
D46: Velocity [kts] | E46: ='Flight log FORM'!J7 -> 0 | G46: =IF(E46="","COMPLETE THE FORM",IF(E46<0,"INVALID WIND VELOCITY","WIND VELOCITY OK")) -> WIND VELOCITY OK | M46: =P38 -> COMPLETE THE FORM | N46: =IF($P$38<=0,N45,N45+((N47-N45)*(($M$46-$M$45)/($M$47-$M$45)))) ->  | O46: =IF($P$38<=0,O45,O45+((O47-O45)*(($M$46-$M$45)/($M$47-$M$45)))) ->  | P46: =IF(P40<=0,N46,N46+((R46-N46)*((($P$42-$N$42)/($R$42-$N$42))))) ->  | Q46: =IF(P40<=0,O46,O46+((S46-O46)*((($P$42-$N$42)/($R$42-$N$42))))) ->  | R46: =IF($P$38<=0,R45,R45+((R47-R45)*(($M$46-$M$45)/($M$47-$M$45)))) ->  | S46: =IF($P$38<=0,S45,S45+((S47-S45)*(($M$46-$M$45)/($M$47-$M$45)))) -> 
C47: Runway | M47: =N38 ->  | N47: =VLOOKUP($M47,'C152 Performance specs'!$B$20:$L$28,'Performance FORM'!N$44,FALSE) ->  | O47: =VLOOKUP($M47,'C152 Performance specs'!$B$20:$L$28,'Performance FORM'!O$44,FALSE) ->  | R47: =VLOOKUP($M47,'C152 Performance specs'!$B$20:$L$28,'Performance FORM'!R$44,FALSE) ->  | S47: =VLOOKUP($M47,'C152 Performance specs'!$B$20:$L$28,'Performance FORM'!S$44,FALSE) -> 
D48: Runway | E48: ='Flight log FORM'!L7 ->  | G48: =IF(E48="","COMPLETE THE FORM",IF(OR(E48<0,E48>35),"INVALID QFU","QFU OK")) -> COMPLETE THE FORM
D49: type | E49: 1 | G49: =IF(E49="","",IF(E49=1,"DEFINE TYPE",IF(E49=2,"PAVED",IF(E49=3,"GRASS")))) -> DEFINE TYPE
D50: LDA [m] | E50: ='Flight log FORM'!M7 ->  | G50: =IF(E50="","COMPLETE THE FORM",IF(E50<0,"INVALID RUNWAY LENGTH VALUE","RUNWAY LENGTH VALUE OK")) -> COMPLETE THE FORM | M50: Landing wind calculations | R50: change in landing distance
C51: Safety margin for landing distance | E51: 0.5 | M51: headwind component [kts] | O51: =E46*COS((ABS((E48*10)-E45)*PI()/180)) ->  | P51: =IF(O51>=0,"HEADWIND",IF(O51<0,"TAILWIND","")) ->  | R51: =IF(O51>=0,O51/9*-0.1,IF(AND(O51<0,O51>=-10),ABS(O51/2*0.1),"USE OTHER RUNWAY DIRECTION")) -> 
C52: Short field landing (flaps 30°, power off, maximum braking) | M52: crosswind component [kts] | O52: =E46*SIN((ABS((E48*10)-E45)*PI()/180)) ->  | P52: CROSSWIND
D53: landing IAS speed [kts] | E53: 54
D54: ground roll [m] | E54: =IF(E41="COMPLETE THE FORM","COMPLETE THE FORM",IF(R51="USE OTHER RUNWAY DIRECTION","CHANGE RUNWAY",IF(E41>=8000,"P.A. TOO HIGH",IF(G49="PAVED",((1+R51)*P46*(1+E51))*0.3048,IF(G49="GRASS",(((1+R51)*P46+(0.45*P46))*(1+E51))*0.3048,"COMPLETE THE FORM"))))) -> COMPLETE THE FORM | M54: Looking up cruise data
D55: total to clear 50ft [m] | E55: =IF(E41="COMPLETE THE FORM","COMPLETE THE FORM",IF(R51="USE OTHER RUNWAY DIRECTION","CHANGE RUNWAY",IF(E41>=8000,"P.A. TOO HIGH",IF(G49="PAVED",((1+R51)*Q46*(1+E51))*0.3048,IF(G49="GRASS",(((1+R51)*Q46+(0.45*P46))*(1+E51))*0.3048,"COMPLETE THE FORM"))))) -> COMPLETE THE FORM | G55: =IF(E41="COMPLETE THE FORM","COMPLETE THE FORM",IF(E41>=8000,"PRESSURE ALTITUDE TOO HIGH",IF(G49="DEFINE TYPE","DEFINE TYPE OF RUNWAY",IF(E50="","COMPLETE THE FORM",IF(E55="CHANGE RUNWAY","TOO MUCH TAILWIND, USE OTHER RUNWAY DIRECTION",IF(E55>E50,"RUNWAY TOO SHORT",IF(E55<=E50,"RUNWAY LENGTH SUFFICIENT"))))))) -> COMPLETE THE FORM | M55: look between PA [ft] | P55: needed PA-value [ft] | R55: are PA-thousands an even value?
M56: =IF(P56<=2000,2000,IF(P56>=12000,12000,IF(AND(P56>=10000,R56=FALSE),(LEFT(P56/1000,2)-1)*1000,IF(AND(P56>=10000,R56=TRUE),LEFT(P56/1000,2)*1000,IF(AND(P56<10000,R56=FALSE),(LEFT(P56/1000,1)-1)*1000,LEFT(P56/1000,1)*1000))))) -> 12000 | N56: =IF(P56<=2000,2000,IF(P56>=12000,12000,M56+2000)) -> 12000 | P56: =E27 -> COMPLETE THE FORM | R56: =IF(AND(P56<10000,MOD(LEFT(P56/1000,1),2)=0),TRUE,IF(AND(P56>=10000,MOD(LEFT(P56/1000,2),2)=0),TRUE,FALSE)) -> 
B57: This document is provided for secondary flightplanning and navigation only. It is the user/pilot's sole responsibility to verify the correctness of all information provided by this sheet. | M57: does RPM-value exist? | P57: needed RPM-value
M58: =IF(OR(P56="",P58="",P56=0,P58=0),"COMPLETE THE FORM",IF(OR(ISERROR(VLOOKUP(M56&"_"&P58,'C152 Performance specs'!$A$33:$L$65,1,FALSE)),ISERROR(VLOOKUP(N56&"_"&P58,'C152 Performance specs'!$A$33:$L$65,1,FALSE))),"RPM VALUE NOT FOUND IN DATA",IF(AND(ISERROR(LOOKUP("NaN",N66:N68)),ISERROR(LOOKUP("NaN",T66:T68))),"RPM VALUE FOUND IN DATA","RPM VALUE NOT FOUND IN DATA"))) -> RPM VALUE NOT FOUND IN DATA | P58: =VLOOKUP(E29,O4:P12,2,FALSE) -> SELECT VALUE
M60: Temperature
M61: standard temperature at PA [°C] | O61: =15-(1.98/1000*E27) ->  | P61: needed temperature [°C] | R61: =E28 -> 0 | T61: is temp above or below standard temp? | X61: =IF(OR(ISERROR(O61),E28=""),"COMPLETE THE FORM",IF(R61<O61,"BELOW","ABOVE")) -> COMPLETE THE FORM
M63: Found & interpolated cruise values
N64: =M56&"_"&P58 -> 12000_SELECT VALUE | Q64: =P56&"_"&P58 -> COMPLETE THE FORM_SELECT VALUE | T64: =N56&"_"&P58 -> 12000_SELECT VALUE
N65: 20°C below... | O65: Standard temp | P65: 20° above… | Q65: 20°C below... | R65: Standard temp | S65: 20° above… | T65: 20°C below... | U65: Standard temp | V65: 20° above…
M66: %BHP | N66: =VLOOKUP($N$64,'C152 Performance specs'!$A$33:$L$65,4,FALSE) ->  | O66: =VLOOKUP($N$64,'C152 Performance specs'!$A$33:$L$65,7,FALSE) ->  | P66: =VLOOKUP($N$64,'C152 Performance specs'!$A$33:$L$65,10,FALSE) ->  | Q66: =IF(N56=M56,N66,($P$56-$M$56)/($N$56-$M$56)*(T66-N66)+N66) ->  | R66: =IF(M56=N56,O66,($P$56-$M$56)/($N$56-$M$56)*(U66-O66)+O66) ->  | S66: =IF(M56=N56,P66,($P$56-$M$56)/($N$56-$M$56)*(V66-P66)+P66) ->  | T66: =VLOOKUP($T$64,'C152 Performance specs'!$A$33:$L$65,4,FALSE) ->  | U66: =VLOOKUP($T$64,'C152 Performance specs'!$A$33:$L$65,7,FALSE) ->  | V66: =VLOOKUP($T$64,'C152 Performance specs'!$A$33:$L$65,10,FALSE) -> 
M67: KTAS [kts] | N67: =VLOOKUP($N$64,'C152 Performance specs'!$A$33:$L$65,5,FALSE) ->  | O67: =VLOOKUP($N$64,'C152 Performance specs'!$A$33:$L$65,8,FALSE) ->  | P67: =VLOOKUP($N$64,'C152 Performance specs'!$A$33:$L$65,11,FALSE) ->  | Q67: =IF(N56=M56,N67,($P$56-$M$56)/($N$56-$M$56)*(T67-N67)+N67) ->  | R67: =IF(M56=N56,O67,($P$56-$M$56)/($N$56-$M$56)*(U67-O67)+O67) ->  | S67: =IF(M56=N56,P67,($P$56-$M$56)/($N$56-$M$56)*(V67-P67)+P67) ->  | T67: =VLOOKUP($T$64,'C152 Performance specs'!$A$33:$L$65,5,FALSE) ->  | U67: =VLOOKUP($T$64,'C152 Performance specs'!$A$33:$L$65,8,FALSE) ->  | V67: =VLOOKUP($T$64,'C152 Performance specs'!$A$33:$L$65,11,FALSE) -> 
M68: GPH | N68: =VLOOKUP($N$64,'C152 Performance specs'!$A$33:$L$65,6,FALSE) ->  | O68: =VLOOKUP($N$64,'C152 Performance specs'!$A$33:$L$65,9,FALSE) ->  | P68: =VLOOKUP($N$64,'C152 Performance specs'!$A$33:$L$65,12,FALSE) ->  | Q68: =IF(N56=M56,N68,($P$56-$M$56)/($N$56-$M$56)*(T68-N68)+N68) ->  | R68: =IF(M56=N56,O68,($P$56-$M$56)/($N$56-$M$56)*(U68-O68)+O68) ->  | S68: =IF(M56=N56,P68,($P$56-$M$56)/($N$56-$M$56)*(V68-P68)+P68) ->  | T68: =VLOOKUP($T$64,'C152 Performance specs'!$A$33:$L$65,6,FALSE) ->  | U68: =VLOOKUP($T$64,'C152 Performance specs'!$A$33:$L$65,9,FALSE) ->  | V68: =VLOOKUP($T$64,'C152 Performance specs'!$A$33:$L$65,12,FALSE) -> 
Q70: including temperature interpolation
Q71: %BHP | R71: =IF($X$61="ABOVE",R66+($R$61-$O$61)/(20)*(S66-R66),IF($X$61="BELOW",Q66+($R$61-($O$61-20))/(20)*(R66-Q66))) -> FALSE
Q72: KTAS | R72: =IF($X$61="ABOVE",R67+($R$61-$O$61)/(20)*(S67-R67),IF($X$61="BELOW",Q67+($R$61-($O$61-20))/(20)*(R67-Q67))) -> FALSE
Q73: GPH | R73: =IF($X$61="ABOVE",R68+($R$61-$O$61)/(20)*(S68-R68),IF($X$61="BELOW",Q68+($R$61-($O$61-20))/(20)*(R68-Q68))) -> FALSE
M75: KTAS -> KCAS -> KIAS
M76: TAS [kts] | N76: =E33 -> COMPLETE THE FORM
M77: CAS [kts] | N77: =E33-(E25/1000*0.02*E33) -> 
M79: Interpolation of IAS [kts] | O79: =HLOOKUP(O80,'C152 Performance specs'!C69:M71,3,FALSE) ->  | Q79: =O79+1 -> 
N80: KCAS [kts] | O80: =LOOKUP(N77,'C152 Performance specs'!C69:M69) ->  | P80: =N77 ->  | Q80: =HLOOKUP(Q79,'C152 Performance specs'!C68:M70,2,FALSE) -> 
N81: KIAS [kts] | O81: =HLOOKUP(O80,'C152 Performance specs'!$C$69:$M$70,2,FALSE) ->  | P81: =O81+((P80-O81)/(Q80-O81)*(Q81-O81)) ->  | Q81: =HLOOKUP(Q80,'C152 Performance specs'!$C$69:$M$70,2,FALSE) -> 
M83: Selected aircraft
N84: ='Flight log FORM'!E2 -> 1 | O84: =VLOOKUP(N84,'Flight log FORM'!AD13:AE17,2,FALSE) -> SELECT | P84: -> associated max weight | R84: =VLOOKUP(O84,N86:O89,2,FALSE) -> 
N85: max weight
N86: OO-VCL | O86: =MAX('OO-VCL'!C16:C20) -> 757
N87: OO-BET | O87: =MAX('OO-BET'!C16:C20) -> 757
N88: OO-VCR | O88: =MAX('OO-VCR'!C16:C20) -> 757
N89: OO-VCM | O89: =MAX('OO-VCM'!C16:C20) -> 757

Sheet W&B FORM
B1: =Introduction!A5 -> remarks? tony.opsomer@gmail.com | O1: =Introduction!E5 -> version 2023-07-15
B2: ="Weight and Balance form C152 " &D5&" "&IF(OR('Performance FORM'!E6=0,'Performance FORM'!E38=0),""," (from "&'Performance FORM'!E6&" to "&'Performance FORM'!E38&")") -> Weight and Balance form C152 | P2: BE.DTO.113 | T2: Calculations
B4: Select C152 aircraft: | D4: ='Flight log FORM'!E2 -> 1
D5: =IF(D4=1,"",IF(D4=2,"OO-VCL",IF(D4=3,"OO-BET",IF(D4=4,"OO-VCR",IF(D4=5,"OO-VCM","SELECT AIRPLANE"))))) ->  | H5: Fuel quantity | I5: Weight | J5: Arm | K5: Moment | M5: Form validity checker
H6: [l] | I6: [kg] | J6: [m] | K6: [kg.m] | M6: Don't forget: always do a manual check on your data!!
B7: Basic empty weight (includes engine oil and unusable fuel) | I7: =IF($D$5="OO-VCL",'OO-VCL'!$C7,IF($D$5="OO-BET",'OO-BET'!$C7,IF($D$5="OO-VCR",'OO-VCR'!$C7,IF($D$5="OO-VCM",'OO-VCM'!$C7,"SELECT AIRPLANE")))) -> SELECT AIRPLANE | J7: =IF($D$5="OO-VCL",'OO-VCL'!$C8,IF($D$5="OO-BET",'OO-BET'!$C8,IF($D$5="OO-VCR",'OO-VCR'!$C8,IF($D$5="OO-VCM",'OO-VCM'!$C8,"SELECT AIRPLANE")))) -> SELECT AIRPLANE | K7: =IF($D$5="OO-VCL",'OO-VCL'!$C9,IF($D$5="OO-BET",'OO-BET'!$C9,IF($D$5="OO-VCR",'OO-VCR'!$C9,IF($D$5="OO-VCM",'OO-VCM'!$C9,"SELECT AIRPLANE")))) -> SELECT AIRPLANE | T7: dropdown list
B8: Usable fuel | D8: mean arm: | E8: =IF(OR(D5="OO-BET",D5="OO-VCL"),39,IF(OR(D5="OO-VCR",D5="OO-VCM"),42,"SELECT AIRPLANE")) -> SELECT AIRPLANE | F8: inch | H8: =IF(D4=1,"",VLOOKUP(D5,'Flight log FORM'!AF41:'Flight log FORM'!AG44,2,FALSE)) ->  | I8: =IF(E8="SELECT AIRPLANE","SELECT AIRPLANE",IF(H8="",0,H8*0.72)) -> SELECT AIRPLANE | J8: =IF(E8="SELECT AIRPLANE","SELECT AIRPLANE",E8*2.54/100) -> SELECT AIRPLANE | K8: =IF(E8="SELECT AIRPLANE","SELECT AIRPLANE",I8*J8) -> SELECT AIRPLANE | M8: =IF(OR(AND(D5<>"OO-VCL",D5<>"OO-BET",D5<>"OO-VCR",D5<>"OO-VCM"),H8=""),"COMPLETE THE FORM",IF(H8>IF(OR(D5="OO-VCL",D5="OO-BET"),141.9,IF(OR(D5="OO-VCR",D5="OO-VCM"),92.7,)),"FUEL TANK OVERFLOW","FUEL QUANTITY WITHIN LIMIT")) -> COMPLETE THE FORM | O8: =IF(OR(AND(D5<>"OO-VCL",D5<>"OO-BET",D5<>"OO-VCR",D5<>"OO-VCM"),H8="",I9="",I10="",I11="",I12=""),"COMPLETE THE FORM",IF(SUM(I7:I12)>MAX(U17:U21),"TOO MUCH USEFUL LOAD","TOTAL USEFUL LOAD WITHIN LIMIT")) -> COMPLETE THE FORM | T8: 1 | U8: SELECT AIRPLANE
B9: Pilot | D9: mean arm: | E9: 39 | F9: inch | J9: =E9*2.54/100 -> 0.9906 | K9: =I9*J9 -> 0 | T9: 2 | U9: OO-VCL
B10: Front passenger | D10: mean arm: | E10: 39 | F10: inch | J10: =E10*2.54/100 -> 0.9906 | K10: =I10*J10 -> 0 | T10: 3 | U10: OO-BET
B11: Baggage area 1 | D11: mean arm: | E11: 64 | F11: inch | J11: =E11*2.54/100 -> 1.6256 | K11: =I11*J11 -> 0 | M11: =IF(OR(AND(D5<>"OO-VCL",D5<>"OO-BET",D5<>"OO-VCR",D5<>"OO-VCM"),I11="",I12=""),"COMPLETE THE FORM",IF(I11>54.4,"TOO MUCH BAGGAGE IN AREA 1",IF(I12>18.1,"TOO MUCH BAGGAGE IN AREA 2",IF(SUM(I11:I12)>54.4,"TOO MUCH BAGGAGE IN AREA 1 AND 2","PARTITIONING OF BAGGAGE IN AREAS 1 AND 2 WITHIN LIMITS")))) -> COMPLETE THE FORM | T11: 4 | U11: OO-VCR
B12: Baggage area 2 | D12: mean arm: | E12: 84 | F12: inch | J12: =E12*2.54/100 -> 2.1336 | K12: =I12*J12 -> 0 | T12: 5 | U12: OO-VCM
B13: RAMP WEIGHT AND MOMENT | I13: =IF(OR(H8="",I9="",I10="",I11="",I12="",I7="SELECT AIRPLANE"),"COMPLETE THE FORM",SUM(I7:I12)) -> COMPLETE THE FORM | J13: =IF(I13="COMPLETE THE FORM","COMPLETE THE FORM",K13/I13) -> COMPLETE THE FORM | K13: =IF(OR(H8="",I9="",I10="",I11="",I12="",I7="SELECT AIRPLANE"),"COMPLETE THE FORM",SUM(K7:K12)) -> COMPLETE THE FORM | M13: =IF(I13="COMPLETE THE FORM","COMPLETE THE FORM","CHECK RESULTS IN GRAPH BELOW") -> COMPLETE THE FORM
B14: Fuel allowance for engine start, taxi and runup | H14: ='C152 Performance specs'!C74*3.785412 -> 3.0283296 | I14: =H14*0.72 -> 2.180397312 | J14: =IF(E8="SELECT AIRPLANE","SELECT AIRPLANE",E8*2.54/100) -> SELECT AIRPLANE | K14: =IF(E8="SELECT AIRPLANE","SELECT AIRPLANE",I14*J14) -> SELECT AIRPLANE
B15: TAKE-OFF WEIGHT AND MOMENT | I15: =IF(OR(H8="",I9="",I10="",I11="",I12="",H14="",I7="SELECT AIRPLANE"),"COMPLETE THE FORM",I13-I14) -> COMPLETE THE FORM | J15: =IF(I15="COMPLETE THE FORM","COMPLETE THE FORM",K15/I15) -> COMPLETE THE FORM | K15: =IF(OR(H8="",I9="",I10="",I11="",I12="",H14="",I7="SELECT AIRPLANE"),"COMPLETE THE FORM",K13-K14) -> COMPLETE THE FORM | M15: =IF(I15="COMPLETE THE FORM","COMPLETE THE FORM","CHECK RESULTS IN GRAPH BELOW") -> COMPLETE THE FORM | T15: graph data
B16: Total trip time | E16: =IF(ISERROR(X30),"",X30) -> 00:00:00 | F16: hh:mm | H16: =(HOUR(E16)*60+MINUTE(E16))/60*'Flight log FORM'!L3 -> 0 | I16: =H16*0.72 -> 0 | J16: =IF(E8="SELECT AIRPLANE","SELECT AIRPLANE",E8*2.54/100) -> SELECT AIRPLANE | K16: =IF(E8="SELECT AIRPLANE","SELECT AIRPLANE",I16*J16) -> SELECT AIRPLANE | M16: =IF(OR(E16="",H8="",I7="SELECT AIRPLANE"),"COMPLETE THE FORM",IF((H16+H14)>H8,"NOT ENOUGH FUEL TO COMPLETE THE TRIP",IF((H16+H14)>(H8-'Flight log FORM'!L3/60*45),"DANGER! DANGER! FUEL RESERVE LESS THAN 45 MIN","TRIP TIME WITHIN LIMIT"))) -> COMPLETE THE FORM | T16: arm [m] | U16: weight [kg]
B17: LANDING WEIGHT AND MOMENT | I17: =IF(OR(H8="",I9="",I10="",I11="",I12="",E16="",H14="",I7="SELECT AIRPLANE"),"COMPLETE THE FORM",IF(M16="TRIP TIME TOO BIG","CHECK TRIP TIME",I15-I16)) -> COMPLETE THE FORM | J17: =IF(I17="COMPLETE THE FORM","COMPLETE THE FORM",IF(I17="CHECK TRIP TIME","CHECK TRIP TIME",K17/I17)) -> COMPLETE THE FORM | K17: =IF(OR(H8="",E16="",I9="",I10="",I11="",I12="",H14="",I7="SELECT AIRPLANE"),"COMPLETE THE FORM",IF(M16="TRIP TIME TOO BIG","CHECK TRIP TIME",K15-K16)) -> COMPLETE THE FORM | M17: =IF(I17="COMPLETE THE FORM","COMPLETE THE FORM",IF(I17="CHECK TRIP TIME","","CHECK RESULTS IN GRAPH BELOW")) -> COMPLETE THE FORM | T17: =(IF($D$5="OO-VCL",'OO-VCL'!B16,IF($D$5="OO-BET",'OO-BET'!B16,IF($D$5="OO-VCR",'OO-VCR'!B16,IF($D$5="OO-VCM",'OO-VCM'!B16,""))))) ->  | U17: =(IF($D$5="OO-VCL",'OO-VCL'!C16,IF($D$5="OO-BET",'OO-BET'!C16,IF($D$5="OO-VCR",'OO-VCR'!C16,IF($D$5="OO-VCM",'OO-VCM'!C16,""))))) -> 
T18: =(IF($D$5="OO-VCL",'OO-VCL'!B17,IF($D$5="OO-BET",'OO-BET'!B17,IF($D$5="OO-VCR",'OO-VCR'!B17,IF($D$5="OO-VCM",'OO-VCM'!B17,""))))) ->  | U18: =(IF($D$5="OO-VCL",'OO-VCL'!C17,IF($D$5="OO-BET",'OO-BET'!C17,IF($D$5="OO-VCR",'OO-VCR'!C17,IF($D$5="OO-VCM",'OO-VCM'!C17,""))))) -> 
T19: =(IF($D$5="OO-VCL",'OO-VCL'!B18,IF($D$5="OO-BET",'OO-BET'!B18,IF($D$5="OO-VCR",'OO-VCR'!B18,IF($D$5="OO-VCM",'OO-VCM'!B18,""))))) ->  | U19: =(IF($D$5="OO-VCL",'OO-VCL'!C18,IF($D$5="OO-BET",'OO-BET'!C18,IF($D$5="OO-VCR",'OO-VCR'!C18,IF($D$5="OO-VCM",'OO-VCM'!C18,""))))) -> 
T20: =(IF($D$5="OO-VCL",'OO-VCL'!B19,IF($D$5="OO-BET",'OO-BET'!B19,IF($D$5="OO-VCR",'OO-VCR'!B19,IF($D$5="OO-VCM",'OO-VCM'!B19,""))))) ->  | U20: =(IF($D$5="OO-VCL",'OO-VCL'!C19,IF($D$5="OO-BET",'OO-BET'!C19,IF($D$5="OO-VCR",'OO-VCR'!C19,IF($D$5="OO-VCM",'OO-VCM'!C19,""))))) -> 
T21: =(IF($D$5="OO-VCL",'OO-VCL'!B20,IF($D$5="OO-BET",'OO-BET'!B20,IF($D$5="OO-VCR",'OO-VCR'!B20,IF($D$5="OO-VCM",'OO-VCM'!B20,""))))) ->  | U21: =(IF($D$5="OO-VCL",'OO-VCL'!C20,IF($D$5="OO-BET",'OO-BET'!C20,IF($D$5="OO-VCR",'OO-VCR'!C20,IF($D$5="OO-VCM",'OO-VCM'!C20,""))))) -> 
T26: conversion minutes to hh:mm notation
W27: hh | X27: mm
T28: total minutes | U28: ='Flight log FORM'!K39 -> 0 | W28: =TRUNC(U28/60,0) -> 0 | X28: =ROUND((U28/60-TRUNC(U28/60))*60,0) -> 0
W30: hh:mm | X30: =TIME(W28,X28,) -> 00:00:00
B46: This document is provided for secondary flightplanning and navigation only. It is the user/pilot's sole responsibility to verify the correctness of all information provided by this sheet.

Sheet C152 Performance specs
B2: DATA C152*
B3: * ALL DATA IS BASED ON THE CESSNA MODEL 152 HANDBOOK, 1 JULY 1978
B4: TAKEOFF DISTANCE | C4: [ft] | D4: (assume takeoff weight of 1670 lbs = 757 kg) | K4: DATA FOUND ON PAGE 5-11
B5: Pressure altitude [ft] | C5: 0°C | E5: 10°C | G5: 20°C | I5: 30°C | K5: 40°C
C6: GRND ROLL | D6: TOTAL TO CLEAR 50 FT OBS | E6: GRND ROLL | F6: TOTAL TO CLEAR 50 FT OBS | G6: GRND ROLL | H6: TOTAL TO CLEAR 50 FT OBS | I6: GRND ROLL | J6: TOTAL TO CLEAR 50 FT OBS | K6: GRND ROLL | L6: TOTAL TO CLEAR 50 FT OBS
B7: 0 | C7: 640 | D7: 1190 | E7: 695 | F7: 1290 | G7: 755 | H7: 1390 | I7: 810 | J7: 1495 | K7: 875 | L7: 1605
B8: 1000 | C8: 705 | D8: 1310 | E8: 765 | F8: 1420 | G8: 825 | H8: 1530 | I8: 890 | J8: 1645 | K8: 960 | L8: 1770
B9: 2000 | C9: 775 | D9: 1445 | E9: 840 | F9: 1565 | G9: 910 | H9: 1690 | I9: 980 | J9: 1820 | K9: 1055 | L9: 1960
B10: 3000 | C10: 855 | D10: 1600 | E10: 925 | F10: 1730 | G10: 1000 | H10: 1870 | I10: 1080 | J10: 2020 | K10: 1165 | L10: 2185
B11: 4000 | C11: 940 | D11: 1775 | E11: 1020 | F11: 1920 | G11: 1100 | H11: 2080 | I11: 1190 | J11: 2250 | K11: 1285 | L11: 2440
B12: 5000 | C12: 1040 | D12: 1970 | E12: 1125 | F12: 2140 | G12: 1215 | H12: 2320 | I12: 1315 | J12: 2525 | K12: 1420 | L12: 2750
B13: 6000 | C13: 1145 | D13: 2200 | E13: 1245 | F13: 2395 | G13: 1345 | H13: 2610 | I13: 1455 | J13: 2855 | K13: 1570 | L13: 3125
B14: 7000 | C14: 1270 | D14: 2470 | E14: 1375 | F14: 2705 | G14: 1490 | H14: 2960 | I14: 1615 | J14: 3255 | K14: 1745 | L14: 3590
B15: 8000 | C15: 1405 | D15: 2800 | E15: 1525 | F15: 3080 | G15: 1655 | H15: 3395 | I15: 1795 | J15: 3765 | K15: 1940 | L15: 4195
B17: LANDING DISTANCE | C17: [ft] | D17: (assume landing weight of 1670 lbs = 757 kg) | K17: DATA FOUND ON PAGE 5-19
B18: Pressure altitude [ft] | C18: 0°C | E18: 10°C | G18: 20°C | I18: 30°C | K18: 40°C
C19: GRND ROLL | D19: TOTAL TO CLEAR 50 FT OBS | E19: GRND ROLL | F19: TOTAL TO CLEAR 50 FT OBS | G19: GRND ROLL | H19: TOTAL TO CLEAR 50 FT OBS | I19: GRND ROLL | J19: TOTAL TO CLEAR 50 FT OBS | K19: GRND ROLL | L19: TOTAL TO CLEAR 50 FT OBS
B20: 0 | C20: 450 | D20: 1160 | E20: 465 | F20: 1185 | G20: 485 | H20: 1215 | I20: 500 | J20: 1240 | K20: 515 | L20: 1265
B21: 1000 | C21: 465 | D21: 1185 | E21: 485 | F21: 1215 | G21: 500 | H21: 1240 | I21: 520 | J21: 1270 | K21: 535 | L21: 1295
B22: 2000 | C22: 485 | D22: 1215 | E22: 500 | F22: 1240 | G22: 520 | H22: 1270 | I22: 535 | J22: 1300 | K22: 555 | L22: 1330
B23: 3000 | C23: 500 | D23: 1240 | E23: 520 | F23: 1275 | G23: 540 | H23: 1305 | I23: 560 | J23: 1335 | K23: 575 | L23: 1360
B24: 4000 | C24: 520 | D24: 1275 | E24: 540 | F24: 1305 | G24: 560 | H24: 1335 | I24: 580 | J24: 1370 | K24: 600 | L24: 1400
B25: 5000 | C25: 540 | D25: 1305 | E25: 560 | F25: 1335 | G25: 580 | H25: 1370 | I25: 600 | J25: 1400 | K25: 620 | L25: 1435
B26: 6000 | C26: 560 | D26: 1340 | E26: 580 | F26: 1370 | G26: 605 | H26: 1410 | I26: 625 | J26: 1440 | K26: 645 | L26: 1475
B27: 7000 | C27: 585 | D27: 1375 | E27: 605 | F27: 1410 | G27: 625 | H27: 1440 | I27: 650 | J27: 1480 | K27: 670 | L27: 1515
B28: 8000 | C28: 605 | D28: 1410 | E28: 630 | F28: 1450 | G28: 650 | H28: 1480 | I28: 675 | J28: 1520 | K28: 695 | L28: 1555
B30: CRUISE PERFORMANCE | D30: (assume takeoff weight of 1670 lbs = 757 kg, leaning as recommended in POH) | K30: DATA FOUND ON PAGE 5-14
B31: Pressure altitude [ft] | C31: RPM | D31: 20°C BELOW STANDARD TEMP | G31: STANDARD TEMP | J31: 20°C ABOVE STANDARD TEMP
D32: % BHP | E32: KTAS | F32: GPH | G32: % BHP | H32: KTAS | I32: GPH | J32: % BHP | K32: KTAS | L32: GPH
A33: =B33&"_"&C33 -> 2000_2400 | B33: 2000 | C33: 2400 | D33: NaN | E33: NaN | F33: NaN | G33: 75 | H33: 101 | I33: 6.1 | J33: 70 | K33: 101 | L33: 5.7
A34: =B34&"_"&C34 -> 2000_2300 | B34: 2000 | C34: 2300 | D34: 71 | E34: 97 | F34: 5.7 | G34: 66 | H34: 96 | I34: 5.4 | J34: 63 | K34: 95 | L34: 5.1
A35: 2000_2200 | B35: 2000 | C35: 2200 | D35: 62 | E35: 92 | F35: 5.1 | G35: 59 | H35: 91 | I35: 4.8 | J35: 56 | K35: 90 | L35: 4.6
A36: 2000_2100 | B36: 2000 | C36: 2100 | D36: 55 | E36: 87 | F36: 4.5 | G36: 53 | H36: 86 | I36: 4.3 | J36: 51 | K36: 85 | L36: 4.2
A37: 2000_2000 | B37: 2000 | C37: 2000 | D37: 49 | E37: 81 | F37: 4.1 | G37: 47 | H37: 80 | I37: 3.9 | J37: 46 | K37: 79 | L37: 3.8
A38: 4000_2450 | B38: 4000 | C38: 2450 | D38: NaN | E38: NaN | F38: NaN | G38: 75 | H38: 103 | I38: 6.1 | J38: 70 | K38: 102 | L38: 5.7
A39: 4000_2400 | B39: 4000 | C39: 2400 | D39: 76 | E39: 102 | F39: 6.1 | G39: 71 | H39: 101 | I39: 5.7 | J39: 67 | K39: 100 | L39: 5.4
A40: 4000_2300 | B40: 4000 | C40: 2300 | D40: 67 | E40: 96 | F40: 5.4 | G40: 63 | H40: 95 | I40: 5.1 | J40: 60 | K40: 95 | L40: 4.9
A41: 4000_2200 | B41: 4000 | C41: 2200 | D41: 60 | E41: 91 | F41: 4.8 | G41: 56 | H41: 90 | I41: 4.6 | J41: 54 | K41: 89 | L41: 4.4
A42: 4000_2100 | B42: 4000 | C42: 2100 | D42: 53 | E42: 86 | F42: 4.4 | G42: 51 | H42: 85 | I42: 4.2 | J42: 49 | K42: 84 | L42: 4
A43: 4000_2000 | B43: 4000 | C43: 2000 | D43: 48 | E43: 81 | F43: 3.9 | G43: 46 | H43: 80 | I43: 3.8 | J43: 45 | K43: 78 | L43: 3.7
A44: 6000_2500 | B44: 6000 | C44: 2500 | D44: NaN | E44: NaN | F44: NaN | G44: 75 | H44: 105 | I44: 6.1 | J44: 71 | K44: 104 | L44: 5.7
A45: 6000_2400 | B45: 6000 | C45: 2400 | D45: 72 | E45: 101 | F45: 5.8 | G45: 67 | H45: 100 | I45: 5.4 | J45: 64 | K45: 99 | L45: 5.2
A46: 6000_2300 | B46: 6000 | C46: 2300 | D46: 64 | E46: 96 | F46: 5.2 | G46: 60 | H46: 95 | I46: 4.9 | J46: 57 | K46: 94 | L46: 4.7
A47: 6000_2200 | B47: 6000 | C47: 2200 | D47: 57 | E47: 90 | F47: 4.6 | G47: 54 | H47: 89 | I47: 4.4 | J47: 52 | K47: 88 | L47: 4.3
A48: 6000_2100 | B48: 6000 | C48: 2100 | D48: 51 | E48: 85 | F48: 4.2 | G48: 49 | H48: 84 | I48: 4 | J48: 48 | K48: 83 | L48: 3.9
A49: 6000_2000 | B49: 6000 | C49: 2000 | D49: 46 | E49: 80 | F49: 3.8 | G49: 45 | H49: 79 | I49: 3.7 | J49: 44 | K49: 77 | L49: 3.6
A50: 8000_2550 | B50: 8000 | C50: 2550 | D50: NaN | E50: NaN | F50: NaN | G50: 75 | H50: 107 | I50: 6.1 | J50: 71 | K50: 106 | L50: 5.7
A51: 8000_2500 | B51: 8000 | C51: 2500 | D51: 76 | E51: 105 | F51: 6.2 | G51: 71 | H51: 104 | I51: 5.8 | J51: 67 | K51: 103 | L51: 5.4
A52: 8000_2400 | B52: 8000 | C52: 2400 | D52: 68 | E52: 100 | F52: 5.5 | G52: 64 | H52: 99 | I52: 5.2 | J52: 61 | K52: 98 | L52: 4.9
A53: 8000_2300 | B53: 8000 | C53: 2300 | D53: 61 | E53: 95 | F53: 5 | G53: 58 | H53: 94 | I53: 4.7 | J53: 55 | K53: 93 | L53: 4.5
A54: 8000_2200 | B54: 8000 | C54: 2200 | D54: 55 | E54: 90 | F54: 4.5 | G54: 52 | H54: 89 | I54: 4.3 | J54: 51 | K54: 87 | L54: 4.2
A55: 8000_2100 | B55: 8000 | C55: 2100 | D55: 49 | E55: 84 | F55: 4.1 | G55: 48 | H55: 83 | I55: 3.9 | J55: 46 | K55: 82 | L55: 3.8
A56: 10000_2500 | B56: 10000 | C56: 2500 | D56: 72 | E56: 105 | F56: 5.8 | G56: 68 | H56: 103 | I56: 5.5 | J56: 64 | K56: 103 | L56: 5.2
A57: 10000_2400 | B57: 10000 | C57: 2400 | D57: 65 | E57: 99 | F57: 5.3 | G57: 61 | H57: 98 | I57: 5 | J57: 58 | K57: 97 | L57: 4.8
A58: 10000_2300 | B58: 10000 | C58: 2300 | D58: 58 | E58: 94 | F58: 4.7 | G58: 56 | H58: 93 | I58: 4.5 | J58: 53 | K58: 92 | L58: 4.4
A59: 10000_2200 | B59: 10000 | C59: 2200 | D59: 53 | E59: 89 | F59: 4.3 | G59: 51 | H59: 88 | I59: 4.2 | J59: 49 | K59: 86 | L59: 4
A60: 10000_2100 | B60: 10000 | C60: 2100 | D60: 48 | E60: 83 | F60: 4 | G60: 46 | H60: 82 | I60: 3.9 | J60: 45 | K60: 81 | L60: 3.8
A61: 12000_2450 | B61: 12000 | C61: 2450 | D61: 65 | E61: 101 | F61: 5.3 | G61: 62 | H61: 100 | I61: 5 | J61: 59 | K61: 99 | L61: 4.8
A62: 12000_2400 | B62: 12000 | C62: 2400 | D62: 62 | E62: 99 | F62: 5 | G62: 59 | H62: 97 | I62: 4.8 | J62: 56 | K62: 96 | L62: 4.6
A63: 12000_2300 | B63: 12000 | C63: 2300 | D63: 56 | E63: 93 | F63: 4.6 | G63: 54 | H63: 92 | I63: 4.4 | J63: 52 | K63: 91 | L63: 4.3
A64: 12000_2200 | B64: 12000 | C64: 2200 | D64: 51 | E64: 88 | F64: 4.2 | G64: 49 | H64: 87 | I64: 4.1 | J64: 48 | K64: 85 | L64: 4
A65: 12000_2100 | B65: 12000 | C65: 2100 | D65: 47 | E65: 82 | F65: 3.9 | G65: 45 | H65: 81 | I65: 3.8 | J65: 44 | K65: 79 | L65: 3.7
B67: AIRSPEED CALIBRATION | D67: (only "flaps up"-data are given!) | K67: DATA FOUND ON PAGE 5-8
C68: 1 | D68: 2 | E68: 3 | F68: 4 | G68: 5 | H68: 6 | I68: 7 | J68: 8 | K68: 9 | L68: 10 | M68: 11
B69: KCAS | C69: 46 | D69: 53 | E69: 60 | F69: 69 | G69: 78 | H69: 88 | I69: 97 | J69: 107 | K69: 117 | L69: 127 | M69: 136
B70: KIAS | C70: 40 | D70: 50 | E70: 60 | F70: 70 | G70: 80 | H70: 90 | I70: 100 | J70: 110 | K70: 120 | L70: 130 | M70: 140
C71: 1 | D71: 2 | E71: 3 | F71: 4 | G71: 5 | H71: 6 | I71: 7 | J71: 8 | K71: 9 | L71: 10 | M71: 11
B73: FUEL NEEDED FOR ENGINE START, TAXI AND TAKEOFF ALLOWANCE | K73: DATA FOUND ON PAGE 5-13
C74: 0.8 | D74: US GALLONS

Sheet OO-VCL
B2: DATA OO-VCL
B3: LONG-RANGE FUEL TANKS
B4: Max fuel quantity | C4: 37.5 | D4: US Gal | E4: =C4*3.785412 -> 141.95295 | F4: l
N5: BASED ON
B6: W&B DATA
B7: Empty Weight | C7: =L7*0.45359237 -> 587.4656221 | D7: kg | L7: 1295.14 | M7: lbs
B8: Arm | C8: =L8*0.0254 -> 0.8142478 | D8: m | L8: 32.057 | M8: in
B9: Moment | C9: =L9*0.45359237*0.0254 -> 478.3347124 | D9: m.kg | L9: 41517.6192 | M9: in.lbs
B11: Max Useful load | C11: =L11*0.45359237 -> 170.0336358 | D11: kg | L11: 374.86 | M11: lbs
B12: (normal category)
B14: W&B Center of Gravity limits graph
B15: arm [m] | C15: weight [kg]
B16: 0.787 | C16: 0
B17: 0.787 | C17: 612
B18: 0.829 | C18: 757
B19: 0.927 | C19: 757
B20: 0.927 | C20: 0
B65: Compass deviation correction table
B66: FOR | C66: 0 | D66: 30 | E66: 60 | F66: 90 | G66: 120 | H66: 150 | I66: 180 | J66: 210 | K66: 240 | L66: 270 | M66: 300 | N66: 330 | O66: 360
B67: STEER | C67: 2 | D67: 32 | E67: 62 | F67: 92 | G67: 121 | H67: 150 | I67: 180 | J67: 210 | K67: 240 | L67: 270 | M67: 300 | N67: 331 | O67: =C67+360 -> 362

Sheet OO-BET
B2: DATA OO-BET
B3: LONG-RANGE FUEL TANKS
B4: Max fuel quantity | C4: 37.5 | D4: US Gal | E4: =C4*3.785412 -> 141.95295 | F4: l
M5: BASED ON
B6: W&B DATA
B7: Empty Weight | C7: =L7*0.45359237 -> 536.4773038 | D7: kg | L7: 1182.73 | M7: lbs
B8: Arm | C8: =L8*0.0254 -> 0.792861 | D8: m | L8: 31.215 | M8: in
B9: Moment | C9: =L9*0.45359237*0.0254 -> 425.3544196 | D9: m.kg | L9: 36919.1329 | M9: in.lbs
B11: Max Useful load | C11: =L11*0.45359237 -> 221.0219541 | D11: kg | L11: 487.27 | M11: lbs
B12: (normal category)
B14: W&B Center of Gravity limits graph
B15: arm [m] | C15: weight [kg]
B16: 0.787 | C16: 0
B17: 0.787 | C17: 612
B18: 0.829 | C18: 757
B19: 0.927 | C19: 757
B20: 0.927 | C20: 0
B65: Compass deviation correction table
B66: FOR | C66: 0 | D66: 30 | E66: 60 | F66: 90 | G66: 120 | H66: 150 | I66: 180 | J66: 210 | K66: 240 | L66: 270 | M66: 300 | N66: 330 | O66: 360
B67: STEER | C67: 2 | D67: 30 | E67: 59 | F67: 92 | G67: 120 | H67: 150 | I67: 180 | J67: 210 | K67: 241 | L67: 271 | M67: 300 | N67: 330 | O67: =C67+360 -> 362

Sheet OO-VCR
B2: DATA OO-VCR
B3: STANDARD RANGE FUEL TANKS
B4: Max fuel quantity | C4: 24.5 | D4: US Gal | E4: =C4*3.785412 -> 92.742594 | F4: l
N5: BASED ON
B6: W&B DATA
B7: Empty Weight | C7: =L7*0.45359237 -> 538.6454753 | D7: kg | L7: 1187.51 | M7: lbs
B8: Arm | C8: =L8*0.0254 -> 0.784733 | D8: m | L8: 30.895 | M8: in
B9: Moment | C9: =L9*0.45359237*0.0254 -> 422.6904344 | D9: m.kg | L9: 36687.9092 | M9: in.lbs
B11: Max Useful load | C11: =L11*0.45359237 -> 218.8537826 | D11: kg | L11: 482.49 | M11: lbs
B12: (utility category)
B14: W&B Center of Gravity limits graph
B15: arm [m] | C15: weight [kg]
B16: =31*0.0254 -> 0.7874 | C16: 0
B17: =31*0.0254 -> 0.7874 | C17: 612
B18: =32.65*0.0254 -> 0.82931 | C18: 757
B19: =36.5*0.0254 -> 0.9271 | C19: 757
B20: =36.5*0.0254 -> 0.9271 | C20: 0
B65: Compass deviation correction table
B66: FOR | C66: 0 | D66: 30 | E66: 60 | F66: 90 | G66: 120 | H66: 150 | I66: 180 | J66: 210 | K66: 240 | L66: 270 | M66: 300 | N66: 330 | O66: 360
B67: STEER | C67: 3 | D67: 32 | E67: 62 | F67: 88 | G67: 118 | H67: 151 | I67: 183 | J67: 212 | K67: 240 | L67: 273 | M67: 303 | N67: 333 | O67: =C67+360 -> 363

Sheet OO-VCM
B2: DATA OO-VCM
B3: STANDARD RANGE FUEL TANKS
B4: Max fuel quantity | C4: 24.5 | D4: US Gal | E4: =C4*3.785412 -> 92.742594 | F4: l
B6: W&B DATA | H6: BASED ON
B7: Empty Weight | C7: =J7*0.45359237 -> 537.887976 | D7: kg | J7: 1185.84 | K7: lbs
B8: Arm | C8: =J8*0.0254 -> 0.778764 | D8: m | J8: 30.66 | K8: in
B9: Moment | C9: =J9*0.45359237*0.0254 -> 418.8584771 | D9: m.kg | J9: 36355.31 | K9: in.lbs
B11: Max Useful load | C11: =J11*0.45359237 -> 219.6112819 | D11: kg | J11: 484.16 | K11: lbs
B12: (normal category)
B14: W&B Center of Gravity limits graph
B15: arm [m] | C15: weight [kg]
B16: =31*0.0254 -> 0.7874 | C16: 0
B17: =31*0.0254 -> 0.7874 | C17: 612
B18: =32.65*0.0254 -> 0.82931 | C18: 757
B19: =36.5*0.0254 -> 0.9271 | C19: 757
B20: =36.5*0.0254 -> 0.9271 | C20: 0
B65: Compass deviation correction table
B66: FOR | C66: 0 | D66: 30 | E66: 60 | F66: 90 | G66: 120 | H66: 150 | I66: 180 | J66: 210 | K66: 240 | L66: 270 | M66: 300 | N66: 330 | O66: 360
B67: STEER | C67: 0 | D67: 30 | E67: 60 | F67: 90 | G67: 120 | H67: 150 | I67: 178 | J67: 210 | K67: 240 | L67: 273 | M67: 300 | N67: 330 | O67: =C67+360 -> 360
